{"text_format":"1","workbook":"xlsx","n_sheets":12,"sheets":["Instrucciones para la hoja de p","Demographics","Detalle del presupuesto Año 1","Detalle del presupuesto Año 2","Detalle del presupuesto Año 3","Detalle del presupuesto Año 4","Detalle del presupuesto Año 5","Resumen del presupuesto","Admin","Reference Data","Ej - detalle del presupuesto","Definiciones"],"not_rendered":{"charts":0,"images":2,"macros":1,"external_links":6,"defined_names":615,"comments":5,"pivot_tables":0},"unopened":[],"bounds":{"document_bytes":16777216,"sheet_cells":100000,"rows_first":2000,"rows_last":500,"rows_between":2000,"halvings":0,"cell_chars":16384,"cell_head_chars":4096},"cells_cut":0,"cells_raw":0,"read":"whole","date_system":"1900"}

{"sheet":"Instrucciones para la hoja de p","index":0,"n_rows":34,"n_cols":10,"rows_kept":34,"cut":false,"hidden":false,"merged":[[15,0,15,10],[16,0,16,10],[21,0,21,10],[14,0,14,10],[13,9,13,10],[13,1,13,2],[13,3,13,4],[13,5,13,6],[13,7,13,8],[17,0,17,10],[18,0,18,10],[19,0,19,10],[20,0,20,10],[6,0,6,10],[11,0,11,10],[12,2,12,4],[0,0,0,10],[3,0,3,10],[7,0,7,10],[4,0,4,10],[8,0,8,10],[5,6,5,10],[5,0,5,4],[12,6,12,8],[9,0,10,10],[1,0,1,10],[2,0,2,10],[22,0,22,10],[23,0,23,10],[33,1,33,10],[31,1,31,10],[32,1,32,10],[30,1,30,10],[24,0,24,10],[29,1,29,10],[28,1,28,10],[25,1,25,10],[26,1,26,10],[27,1,27,10]]}
["Hoja de cálculo del presupuesto\nAprobación OMB NO.:  1121-0329\nExpira el 30/11/2020"]
["Para obtener una versión accesible y compatible con la norma 508 de la hoja de cálculo del presupuesto, utilice el siguiente enlace:"]
["https://ojp.gov/funding/Apply/Forms/BudgetDetailWorksheet/BDW508.pdf"]
["Instrucciones para la hoja de trabajo"]
["Nota: Este documento requiere que las macros estén habilitadas para funcionar correctamente. Por favor, asegúrese de que las macros están activadas antes de introducir cualquier dato. Puede habilitar las macros eligiendo la opción \"Habilitar este contenido\" de la barra de advertencia de seguridad que aparece en la parte superior. \n\n\n\n\n\nSi la barra de opciones no está visible, es posible que se le haya pedido que habilite las macros al abrir el documento, como se muestra aquí. Si ha elegido desactivar las macros, "]
[null,null,null,null,null,null," cierre el documento y vuelva a abrirlo con las macros activadas. "]
["Objetivo:"]
["La hoja de detalle del presupuesto se proporciona para su uso en la preparación del presupuesto y la descripción del mismo. Se debe proporcionar toda la información requerida (incluida la descripción del presupuesto). Cualquier categoría de gasto que no sea aplicable a su presupuesto puede ser dejada en blanco.  Indique el importe no federal (que coincida) en la categoría correspondiente, si procede."]
["Cómo utilizar este manual:"]
["El manual incluye varias hojas de trabajo. La primera hoja de trabajo (ésta) es una hoja de instrucciones; la siguiente incluye la hoja de detalle del presupuesto y la descripción para el año 1.  Hay duplicados de esta hoja de trabajo para los años 2-5 que pueden completarse según sea necesario. La última hoja de trabajo es un resumen del presupuesto. Recoge toda la información presupuestaria pertinente en un único lugar y debe revisarse para comprobar que es correcta antes de cargar el libro de trabajo en la aplicación GMS. \nUtilización paso a paso:\n1. Por favor, lea e imprima esta página de instrucciones. Puede utilizarse como referencia mientras se completa el resto del documento.\n2. Para cada categoría presupuestaria, puede ver un ejemplo consultando la \"Hoja de ejemplo detallada del presupuesto\".\n3. La pestaña \"Definiciones\" explica los términos utilizados en las instrucciones para las distintas categorías presupuestarias.\n4. Retención de registros: De conformidad con los requisitos establecidos en la parte 2 00.333 del título 2 del CFR, cada organización deberá conservar todos los registros financieros, los d ocumentos justificativos, los registros estadísticos y todos los demás registros relacionados con la subvención durante al menos tres años tras el cierre del informe de auditoría correspondiente al periodo de subvención.\n5. La información divulgada en este formulario está sujeta a la Ley de Libertad de Información en virtud del U.S.C. 55.2."]
[]
["Información del punto de contacto del presupuesto:"]
["Nombre del  contacto: ","Apellido:",null,null,null,"Primer nombre: ",null,null,null,"Segundo nombre: "]
["Teléfono de contacto: ",null,null,"Fax de contacto:",null,null,null,"Correo electrónico de contacto:"]
["Índice de hojas de cálculo:"]
["Pestaña"]
["Detalle del presupuesto Año 1"]
["Detalle del presupuesto Año 2"]
["Detalle del presupuesto Año 3"]
["Detalle del presupuesto Año 4"]
["Detalle del presupuesto Año 5"]
["Resumen del presupuesto"]
["Ej - detalle del presupuesto"]
["Definiciones"]
["Descripciones de categorías presupuestarias:"]
["Personal","Enumere cada puesto por título y nombre del empleado, si procede. Indique la tarifa salarial anual y el porcentaje de tiempo que se dedicará al proyecto. La remuneración de los empleados que participan en las actividades de la subvención debe ser coherente con la que se paga por un trabajo similar dentro de la organización solicitante. En la descripción del presupuesto, incluya una descripción de las responsabilidades y funciones de cada puesto en relación con el cumplimiento de las metas y objetivos del proyecto. Toda la información solicitada debe incluirse en la hoja de cálculo del presupuesto y en la descripción del mismo.\n"]
["Beneficios adicionales","Las prestaciones complementarias deben basarse en los costes reales conocidos o en una tarifa negociada aprobada por un organismo federal. Si no se basa en una tarifa negociada aprobada, indique la composición del paquete de prestaciones complementarias. Los beneficios adicionales son para el personal que figura en la categoría presupuestaria (A) y sólo para el porcentaje de tiempo dedicado al proyecto. Toda la información solicitada debe incluirse en la hoja de cálculo del presupuesto y en la descripción del mismo."]
["Viajes","Detalle los gastos de viaje del personal (por ejemplo, del personal que asiste a la formación, entrevistas sobre el terreno, reunión del grupo consultivo, etc.). Describa la finalidad de cada gasto de viaje en relación con los objetivos del proyecto. Indique la base de cálculo (por ejemplo, seis personas a una formación de 3 días a X dólares de tarifa aérea, X dólares de alojamiento, X dólares de manutención). En los proyectos de formación, los viajes y las comidas de los participantes deben figurar por separado. Indique el número de alumnos y los costes unitarios correspondientes. Señale el lugar del viaje, si lo conoce; o si lo desconoce, indique \"lugar por determinar\". Indique si se sigue la política de viajes formal por escrito del solicitante o la normativa federal sobre viajes. Nota: Los gastos de viaje de los consultores deben incluirse en los campos de datos \"Viajes de los consultores\" en la categoría \"Subconcesiones ( subvenciones )/Contratos de adquisición\"."]
["Equipamiento","Enumere los artículos no expendibles que se van a comprar (Nota: Debe utilizarse la política de capitalización propia de la organización para la clasificación del equipo). Los artículos consumibles deben incluirse en la categoría \"Suministros\". Los solicitantes deben analizar las ventajas de coste de la compra frente al arrendamiento de equipos, especialmente los artículos de alto coste y los sujetos a rápidos avances tecnológicos. Los costes de los equipos alquilados o arrendados deben figurar en los campos de datos \"Contratos\" en la categoría \"Subconcesiones ( subvenciones )/Contratos de adquisición” En la descripción del presupuesto, explique por qué el equipo es necesario para el éxito del proyecto y describa el método de adquisición que se utilizará. Toda la información solicitada debe incluirse en la hoja de cálculo del presupuesto y en la descripción del mismo."]
["Suministros","Enumere los artículos por tipo (suministros de oficina, franqueo, material de formación, papel de copia y artículos de equipo fungible que cuesten menos de 5.000 dólares, como libros, grabadoras de mano) y muestre la base de cálculo. Por lo general, los suministros incluyen cualquier material fungible o consumido durante el transcurso del proyecto. Toda la información solicitada debe incluirse en la hoja de cálculo del presupuesto y en la descripción del mismo."]
["Construcción","Describa el proyecto de construcción y haga una estimación de los costes.   Las reparaciones o renovaciones menores pueden ser admisibles y deben clasificarse en la categoría \"Otros\". La OJP no financia actualmente programas de construcción. Consulte con la oficina del programa antes de presupuestar fondos en esta categoría.  Toda la información solicitada debe incluirse en la hoja de cálculo del presupuesto y en la descripción del mismo. "]
["Subconcesiones ( subvenciones), \nContratos de adquisición y\nHonorarios de consultores","Subconcesiones (véase la definición de \"Subconcesión\" en 2 CFR 200.92):  Proporcione una descripción de las actividades de la concesión federal que se propone que lleve a cabo cualquier subreceptor y una estimación del coste (incluya el coste por subreceptor, en la medida en que se conozca antes de la presentación de la solicitud).  Para cada subreceptor, introduzca el nombre de la entidad subreceptora, si se conoce.  Indique cualquier información de subvención incluida en la categoría presupuestaria G. Subconcesiones/contratos de adquisición incluyendo la etiqueta \"(subconcesión)\" con cada entrada de subconcesión.\n\nContratos de adquisición (véase la definición de \"contrato\" en el 2 CFR 200.22): Describa el producto o servicio que se va a adquirir por contrato y haga una estimación del coste.  Indique si se sigue la Política de Adquisición formal y escrita del solicitante o el Reglamento Federal de Adquisiciones.  Se anima a los solicitantes a promover la competencia libre y abierta en la adjudicación de contratos públicos.  Se debe proporcionar una justificación separada para las adquisiciones de fuente única que superen el Umbral de Adquisición Simplificada establecido de acuerdo con el U.S.C. 41 de 1908 (actualmente fijado en 150.000 dólares).\n\nHonorarios de los consultores:  Para cada consultor, introduzca el nombre, si lo conoce, el servicio que se va a prestar, los honorarios por hora o por día (jornada de 8 horas) y el tiempo estimado en el proyecto.  Los honorarios de los consultores que superen la tarifa máxima del componente de subvención del DOJ por una jornada de 8 horas (actualmente 650 dólares) requieren una justificación adicional y la aprobación previa del respectivo componente de subvención del DOJ.  Toda la información solicitada debe incluirse en la hoja de cálculo del presupuesto y en la descri pción del mismo."]
["Otros costes","Enumere los elementos (por ejemplo, alquiler, copias, teléfono, servicios de conserjería o seguridad y fondos de investigación o confidenciales) por tipo y la base del cálculo. Por ejemplo, proporcione los metros cuadrados y el coste por pie cuadrado del alquiler, o proporcione el coste mensual del alquiler y el número de meses de alquiler. Toda la información solicitada debe incluirse en la hoja de cálculo del presupuesto y en la descripción del mismo."]
["Costos indirectos","Los costes indirectos sólo se permiten si:  a) el solicitante tiene una tasa de costes indirectos vigente y aprobada por el gobierno federal; o b) el solicitante puede utilizar la tasa de costes indirectos \"de minimis\" descrita en 2 C.F.R. 200.414(f) y opta por hacerlo.  (Véase el apartado D.1.b. del Apéndice VII de la Parte 200-Propuestas de Costes Indirectos de los Estados y las Administraciones Locales y de las Tribus Indígenas para obtener una descripción de las entidades que no pueden optar por utilizar el porcentaje \"de minimis\").  Los solicitantes con una tasa de costes indirectos vigente y aprobada por el gobierno federal deben adjuntar una copia de la aprobación de la tasa, (un acuerdo negociado completamente formalizado.  Si el solicitante no tiene una tarifa aprobada, puede solicitar una poniéndose en contacto con la agencia federal competente del solicitante, que revisará toda la documentación y aprobará una tarifa para la organización solicitante, o si el sistema de contabilidad del solicitante lo permite, los costes pueden asignarse en las categorías de costes directos.  (Los gobiernos tribales indios solicitantes, en particular, deben revisar el Apéndice VII de la Parte 200-Propuestas de Costos Indirectos de los Gobiernos Estatales y Locales y de las Tribus Indias en relación con la presentación y documentación de las propuestas de costos indirectos).  La narrativa de cualquier coste indirecto debe indicar claramente a qué costes directos se aplica el acuerdo de costes indirectos.  Toda la información solicitada debe incluirse en la hoja de cálculo del presupuesto y en la descripción del mismo.\nPara poder utilizar el tipo indirecto \"de minimis\", el solicitante deberá adjuntar a la solicitud documentación escrita que informe al DOJ tanto de la elegibilidad del solicitante (para utilizar el tipo \"de minimis\") como de su elección. Si el solicitante opta por el método de minimis, los costes deben imputarse de forma coherente como costes indirectos o directos, pero no pueden imputarse por partida doble o de forma incoherente como unos y otros. Además, si se elige este método, deberá utilizarse de forma coherente para todas las concesiones federales hasta que la entidad solicitante decida negociar un tipo de coste indirecto aprobado por el gobierno federal.\n"]

{"sheet":"Demographics","index":1,"n_rows":164,"n_cols":9,"rows_kept":164,"cut":false,"hidden":true,"merged":[[102,5,102,6],[102,7,102,8],[104,2,105,6],[105,7,105,8],[126,2,126,6],[126,7,126,8],[115,1,115,8],[116,3,116,4],[117,3,117,4],[117,5,117,6],[117,7,117,8],[119,2,120,6],[120,7,120,8],[122,2,122,6],[122,7,122,8],[124,2,124,6],[124,7,124,8],[14,1,15,5],[14,7,14,8],[16,1,17,5],[16,7,16,8],[0,0,0,9],[1,1,1,8],[2,0,2,3],[3,1,3,8],[4,3,4,8],[6,3,6,8],[8,7,8,8],[12,1,13,5],[12,7,12,8],[10,1,11,5],[8,1,9,5],[10,7,10,8],[55,1,56,8],[58,0,58,3],[18,7,18,8],[22,1,22,8],[42,6,42,8],[45,1,46,8],[48,1,49,8],[50,1,51,8],[53,1,53,8],[54,1,54,8],[18,1,19,5],[20,1,21,5],[20,7,20,8],[163,7,163,8],[155,7,155,8],[156,7,156,8],[157,7,157,8],[158,7,158,8],[159,7,159,8],[160,7,160,8],[67,2,67,5],[67,6,67,8],[68,2,68,5],[68,6,68,8],[69,2,69,5],[69,6,69,8],[154,7,154,8],[94,5,94,8],[96,1,96,8],[97,2,97,8],[98,3,98,4],[98,5,98,6],[98,7,98,8],[136,1,137,8],[146,4,146,8],[148,4,148,8],[153,7,153,8],[89,5,89,8],[64,2,64,5],[64,6,64,8],[65,2,65,5],[65,6,65,8],[66,2,66,5],[66,6,66,8],[161,7,161,8],[162,7,162,8],[151,1,152,8],[100,1,100,8],[101,3,101,4],[92,1,92,8],[93,2,93,8],[71,1,71,8],[72,0,78,1],[113,7,113,8],[107,7,107,8],[109,2,109,6],[107,2,107,6],[109,7,109,8],[111,2,111,6],[111,7,111,8],[102,3,102,4],[59,1,59,8],[61,2,61,8],[62,2,62,5],[62,6,62,8],[63,2,63,5],[63,6,63,8],[72,2,78,8],[83,1,83,8],[84,1,84,8],[80,1,80,8]]}
["Demographic Form"]
[null,"Please fill out this form in its entirety. Note that each subsection has individual instructions. Please read them carefully before filling out this form. If you are applying as a consortium please aggregate the data for all the Tribes represented in your application."]
["I. Tribe Information"]
[null,"1. The name of each federally-recognized Indian Tribe that will be served by the proposed project(s):"]
[null,"Name(s)",null,"The name(s) of your tribe and represented tribes. "]
[]
[null,"BIA Region(s)"]
[]
[null,"2. What is the Tribe's current enrollment, including members living both on and off the reservation?"]
[]
[null,"3. What is the Tribe's juvenile population, including members living both on and off the reservation?"]
[]
[null,"4. Of your current enrollment, what is the Tribe's total number of unemployed 18 years and over?"]
[]
[null,"5. Of your current enrollment, what is the Tribe's total number of under-employed (below the poverty line) 18 years and over?"]
[]
[null,"6. Of your current enrollment, what is the Tribe's total number of employed 18 years and over?"]
[]
[null,"7. What is the current local population base?"]
[]
[null,"8. Please enter the approximate square mileage of the reservation/jurisdiction to be served: (sq. miles)"]
[]
[null,"9. Please check the crime victim population area(s) that best describe the services the Tribe typically supports."]
[]
[]
[]
[]
[]
[]
[]
[]
[]
[]
[null,"10. Have you applied for a CTAS grant before?"]
[]
[null,null,"If yes, what year?"]
[]
[null,"11. Please provide your status as an applicant (check all that apply):"]
[]
[]
[]
[]
[]
[]
[null,"a. If you selected Tribal Coalition or Tribal Consortia please list the tribes you represent:"]
[]
[]
[]
[null,"b. If you selected Non-profit organization describe the nature of you services and whom you provide them."]
[]
[]
[]
[]
[null,"12. Please indicate if you agree with the following statement: The tribe(s)submitting this application consider themselves to be remotely located with respect to availability of justice or other relevant community services."]
[null,"If you selected “Yes”, please provide a brief statement that explains your selection. Examples might include “For a majority of our tribal community, law enforcement resource centers are greater than 1 hour’s drive away.” Or  “Our tribal community has no resident medical facilities and the nearest public health center is operated by the City/Town of XXX which is not within tribal lands and not easily reached.”"]
[]
[]
[]
["II. Property/Violent Crime"]
[null,"Using the most recent available data and to the best of your ability using the UCR crime definitions, enter the actual number of incidents reported to your Tribe for the following crime types. Note that only those incidents for which your Tribe had primary response authority should be provided."]
[]
[null,null,"UCR Data *"]
[null,null,"Year"]
[null,null,"Criminal Homicide"]
[null,null,"Forcible Rape"]
[null,null,"Robbery"]
[null,null,"Aggravated Assault"]
[null,null,"Burglary"]
[null,null,"Larceny (except motor vehicle theft)"]
[null,null,"Motor Vehicle Theft"]
[]
[null,"*Note: If your Tribe is not using UCR data or reports to NIBRS, please explain the source or methods used to report your crime data. If you do not report crime incidents at all please explain why you are unable to provide such data. If instructions are needed on converting your data to UCR Summary Data style please view the COPS Application Guide of the FBI's UCR Handbook (www.fbi.gov/ucr/handbook/ucrhandbook04.pdf) for more information."]
[]
[]
[]
[]
[]
[]
[]
[]
[null,"The FBI is retiring the current Summary Reporting System (SRS) and will transition to an all-NIBRS data collection system within the next five years. The transition to NIBRS will provide a more complete and accurate picture of crime at the tribal, national, state, and local level. As of 2021, the FBI will no longer collect summary data and will only accept data in the NIBRS format and COPS Office awards will be based on submitted NIBRS data. Transitioning all law enforcement agencies to NIBRS is the first step in gathering more comprehensive crime data. Tribal, state, and local COPS grantees are encouraged to expedite the transition to NIBRS in their jurisdictions so that they will remain eligible to receive COPS Office awards."]
[]
["III. Tribal Law Enforcement Information"]
[null,"Please answer the following questions. NOTE: If you choose \"none\" for question 1 you are finished completing this section and do not need to answer 1a or 1b."]
[null,"1. What law enforcement agency or departments does your Tribe operate? (check all that apply):"]
[]
[]
[]
[]
[]
[]
[]
[null,"a. What is the actual population your department serves as the primary law enforcement agency entity?"]
[null,null,"This may or may not be the same as the population reported in the U.S. Census, the Tribe's current enrollment or the local population base. A Tribe with primary law enforcement authority is defined as having first responder responsibility to calls for service for all types of criminal incidents within its jurisdiction."]
[]
[]
[null,"b. Enter the current Fiscal Year Actual Sworn Force Strength as of the date of this application:"]
[null,null,"The actual number of sworn officer positions is the actual number of sworn positions employed by your Tribe as of the date of this application. Do not include funded but currently vacant positions or unpaid positions. NOTE: For Tribes with multiple component law enforcement departments (e.g. Department of Public Safety and Fish and Wildlife Department), please report cumulative, full- and part-time sworn-force strength number for all law enforcement departments in your Tribe which would receive funding through this request if awarded."]
[null,null,"Full-Time:",null,null,"Part-Time:"]
[]
[null,"2. On average how many hours of IN-SERVICE (non-recruit) training (e.g. FTO, continuing professional education, roll call, standard) are required annually for each of your agency’s officers/deputies in the following categories (if none, please indicate 0 hours)?"]
[]
[null,null,"Use of Force:",null,null,"De-escalation of conflict:"]
[]
[null,null,"Racial and ethnic bias that includes elements of implicit/unconscious bias:     "]
[]
[]
[null,null,"Gender bias in response to domestic violence and sexual assault:"]
[]
[null,null,"Bias towards lesbian, gay, bisexual, and transgender (LGBT) individuals:"]
[]
[null,null,"Community engagement (e.g., community policing and problem solving):"]
[]
[null,"3. Does your agency administer a police training academy? "]
[]
[null,"4. How many total hours of basic/recruit ACADEMY training are required for each of your agency’s officer/deputy recruits in the following categories (if none, please indicate 0 hours)?"]
[]
[null,null,"Use of Force:",null,null,"De-escalation of conflict:"]
[]
[null,null,"Racial and ethnic bias that includes elements of implicit/unconscious bias:     "]
[]
[]
[null,null,"Gender bias in response to domestic violence and sexual assault:"]
[]
[null,null,"Bias towards lesbian, gay, bisexual, and transgender (LGBT) individuals:"]
[]
[null,null,"Community engagement (e.g., community policing and problem solving):"]
[]
["IV. Tribal Facilities, Capacities and Capabilities"]
[null,"1. Telecommunications and Technology"]
[null,"a. Describe your Internet Access:"]
[]
[]
[]
[]
[]
[null,"b. What types of communication services are generally available to the tribe at large and/or the tribe's justice components? (check all that apply)"]
[]
[null,null,null,null,null,null,null,"Tribe","Justice "]
[null,null,"i. Land Line (telephone, dial-up service)"]
[null,null,"ii. Cellular (telephone, data, etc.)"]
[null,null,"iii. Satellite - Receive only (broadcasting services)"]
[null,null,"iv. Satellite - 2-way (2-way voice and data and well as broadcasting)"]
[null,null,"v. Radio services  - (HF, VHF, UHF)"]
[null,null,"vi. Point to Point Microwave "]
[null,null,"vii. Other (please describe)"]
[null,null,null,"Tribal"]
[]
[null,null,null,"Justice Comp."]
[]
[null,"2. Facilities and Services (check all that apply)"]
[null,"Applicants should check and provide data for all the facilities and services located within the reservation/jurisdiction described in question 8 above. "]
[]
[null,null,null,null,null,null,"# of beds"]
[null,null,null,null,null,null,"# of facilities"]
[null,null,null,null,null,null,"# of facilities"]
[null,null,null,null,null,null,"# of facilities"]
[null,null,null,null,null,null,"# of facilities"]
[null,null,null,null,null,null,"# of beds"]
[null,null,null,null,null,null,"# of beds"]
[null,null,null,null,null,null,"# of facilities"]
[null,null,null,null,null,null,"# of facilities"]
[null,null,null,null,null,null,"# of facilities"]
[null,null,null,null,null,null,"# of facilities"]

{"sheet":"Detalle del presupuesto Año 1","index":2,"n_rows":139,"n_cols":12,"rows_kept":139,"cut":false,"hidden":false,"merged":[[1,10,2,11],[92,0,92,8],[91,3,91,5],[91,1,91,2],[89,1,89,2],[89,3,89,5],[90,1,90,2],[90,3,90,5],[87,6,88,6],[87,7,88,7],[87,8,88,8],[65,3,65,11],[77,0,77,1],[76,0,76,1],[80,0,80,1],[82,0,82,1],[76,9,77,11],[78,9,79,9],[78,10,79,10],[58,3,58,4],[56,0,56,2],[66,9,67,9],[68,5,68,8],[87,9,88,9],[110,3,110,5],[106,1,106,2],[106,3,106,5],[106,6,106,11],[107,1,107,2],[107,3,107,5],[107,6,107,11],[108,0,109,5],[108,6,109,6],[108,7,109,7],[108,8,109,8],[108,9,109,9],[108,10,109,10],[59,0,59,8],[64,1,64,2],[66,0,67,2],[65,1,65,2],[66,5,67,8],[69,1,69,2],[69,3,69,4],[69,5,69,8],[68,3,68,4],[66,3,67,4],[68,1,68,2],[61,0,62,11],[64,3,64,11],[70,5,70,8],[73,0,74,11],[71,0,71,8],[66,10,67,10],[66,11,67,11],[70,3,70,4],[70,1,70,2],[87,10,88,10],[85,6,85,11],[78,11,79,11],[80,2,80,6],[81,2,81,6],[82,2,82,6],[81,7,81,8],[82,7,82,8],[124,2,124,3],[124,5,124,6],[124,7,124,8],[118,2,118,11],[119,2,119,11],[119,0,119,1],[118,0,118,1],[120,5,121,6],[122,5,122,6],[120,2,121,3],[120,4,121,4],[120,7,121,8],[122,2,122,3],[123,0,123,1],[123,2,123,3],[122,7,122,8],[120,11,121,11],[120,10,121,10],[120,9,121,9],[123,5,123,6],[123,7,123,8],[122,0,122,1],[124,0,124,1],[139,0,140,11],[134,3,134,4],[136,3,136,4],[132,3,133,4],[132,9,133,9],[132,10,133,10],[132,11,133,11],[132,0,133,2],[134,0,134,2],[137,0,137,8],[132,5,133,8],[134,5,134,8],[136,5,136,8],[136,0,136,2],[135,0,135,2],[135,3,135,4],[135,5,135,8],[18,9,19,9],[18,10,19,10],[83,0,83,8],[81,0,81,1],[102,0,102,1],[84,0,84,1],[85,1,85,2],[86,1,86,2],[11,0,11,8],[30,9,31,9],[30,10,31,10],[29,1,29,2],[20,0,20,2],[28,1,28,2],[20,5,20,8],[22,5,22,8],[22,0,22,2],[23,0,23,8],[30,8,31,8],[25,0,26,11],[28,5,28,11],[29,5,29,11],[30,11,31,11],[75,0,75,1],[18,11,19,11],[13,0,14,11],[16,3,16,11],[17,3,17,11],[17,0,17,2],[16,0,16,2],[18,0,19,2],[18,5,19,8],[0,0,0,5],[0,7,0,11],[6,11,7,11],[8,5,8,6],[10,5,10,6],[6,0,7,1],[6,4,7,4],[6,5,7,6],[6,9,7,9],[6,10,7,10],[5,2,5,11],[4,2,4,11],[6,2,7,3],[8,2,8,3],[10,2,10,3],[6,7,7,8],[8,7,8,8],[10,7,10,8],[9,2,9,3],[9,5,9,6],[9,7,9,8],[32,1,32,2],[34,1,34,2],[33,1,33,2],[20,3,20,4],[22,3,22,4],[30,0,31,4],[30,5,31,5],[30,6,31,6],[30,7,31,7],[18,3,19,4],[21,0,21,2],[21,3,21,4],[21,5,21,8],[57,3,57,4],[57,5,57,8],[41,3,41,11],[42,3,43,4],[42,9,43,9],[42,10,43,10],[37,0,38,11],[40,3,40,11],[42,11,43,11],[41,0,41,2],[40,0,40,2],[42,0,43,2],[45,0,45,2],[54,3,55,4],[54,0,55,2],[56,3,56,4],[99,11,100,11],[104,0,104,8],[102,7,102,8],[103,7,103,8],[99,9,100,9],[35,0,35,8],[42,5,43,8],[44,5,44,8],[46,5,46,8],[54,5,55,8],[56,5,56,8],[58,0,58,2],[45,3,45,4],[45,5,45,8],[57,0,57,2],[58,5,58,8],[47,0,47,8],[49,0,50,11],[52,3,52,11],[53,3,53,11],[54,9,55,9],[54,10,55,10],[54,11,55,11],[44,3,44,4],[1,0,1,9],[2,0,2,1],[111,1,111,2],[111,3,111,5],[105,0,105,1],[112,1,112,2],[112,3,112,5],[113,0,113,8],[110,1,110,2],[97,0,97,1],[98,0,98,1],[97,2,97,6],[98,2,98,6],[98,7,98,8],[99,0,100,1],[101,2,101,6],[102,2,102,6],[103,2,103,6],[101,7,101,8],[46,3,46,4],[44,0,44,2],[53,0,53,2],[52,0,52,2],[46,0,46,2],[131,0,131,2],[130,0,130,2],[127,0,128,11],[130,3,130,11],[131,3,131,11],[125,0,125,8],[115,0,116,11],[108,11,109,11],[76,2,76,6],[77,2,77,6],[76,7,76,8],[77,7,77,8],[80,7,80,8],[101,0,101,1],[103,0,103,1],[96,0,96,1],[94,0,95,11],[97,7,97,8],[86,6,86,11],[85,3,85,5],[86,3,86,5],[87,11,88,11],[87,0,88,5],[99,10,100,10]]}
[{"$f":"'Instrucciones para la hoja de p'!A17","v":"Detalle del presupuesto Año 1"}]
["¿Incluye este presupuesto los costes de conferencias, que se definen de forma amplia para incluir reuniones, retiros, seminarios, simposios y actividades de formación? S/N"]
["(Guía financiera del DOJ, sección 3.10)"]
["A. Personal"]
["Nombre","Cargo","Cálculo"]
["Mencione cada nombre, en caso de que lo conozca.","Mencione cada Cargo, en caso de que lo conozca.","Indique la tasa de salario anual y la cantidad de tiempo dedicado al proyecto para cada nombre/puesto."]
[null,null,"Salario ",null,"Tasa","Tiempo trabajado\n(número de horas, días, meses, años) ",null,"Porcentaje de tiempo",null,"Coste total","Contribución no federal","Solicitud federal"]
[]
[null,null,null,null,null,null,null,null,null,{"$f":"CEILING(C9*F9*H9,1)","v":0},null,{"$f":"IF(J9-K9<0,0,J9-K9)","v":0}]
[null,null,null,null,null,null,null,null,null,{"$f":"CEILING(C10*F10*H10,1)","v":0},null,{"$f":"IF(J10-K10<0,0,J10-K10)","v":0}]
[null,null,null,null,null,null,null,null,null,{"$f":"CEILING(C11*F11*H11,1)","v":0},null,{"$f":"IF(J11-K11<0,0,J11-K11)","v":0}]
["Total(es)",null,null,null,null,null,null,null,null,{"$f":"SUM(J9:J11)","v":0},{"$f":"SUM(K9:K11)","v":0},{"$f":"SUM(L9:L11)","v":0}]
["Descripción"]
[]
[]
["B. Beneficios adicionales"]
["Nombre",null,null,"Cálculo"]
["Enumere cada uno de los puestos financiados por la subvención que reciban beneficios adicionales.",null,null,"Mostrar la base de cálculo"]
[null,null,null,"Base",null,"Tasa",null,null,null,"Coste total","Contribución no federal","Solicitud federal"]
[]
[null,null,null,null,null,null,null,null,null,{"$f":"CEILING(D21*F21,1)","v":0},null,{"$f":"IF(J21-K21<0,0,J21-K21)","v":0}]
[null,null,null,null,null,null,null,null,null,{"$f":"CEILING(D22*F22,1)","v":0},null,{"$f":"IF(J22-K22<0,0,J22-K22)","v":0}]
[null,null,null,null,null,null,null,null,null,{"$f":"CEILING(D23*F23,1)","v":0},null,{"$f":"IF(J23-K23<0,0,J23-K23)","v":0}]
["Total(es)",null,null,null,null,null,null,null,null,{"$f":"SUM(J21:J23)","v":0},{"$f":"SUM(K21:K23)","v":0},{"$f":"SUM(L21:L23)","v":0}]
["Descripción"]
[]
[]
["C. Viajes"]
["Propósito del viaje","Ubicación",null,"Tipo de gasto","Base","Cálculo"]
["Indique el objetivo de cada viaje o tipo de viaje (formación, reunión del grupo consultivo)","Indique el destino del viaje.",null,"Alojamiento, comidas, etc.","Por día, milla, viaje, etc.","Calcula el coste de cada tipo de gasto X el número de personas que viajan."]
[null,null,null,null,null,"Costo","Cantidad","# de Personal","# Número de viajes","Coste total","Contribución no federal","Solicitud federal"]
[]
[null,null,null,null,{"$f":"IF((D33=\"Lodging\"),\"Night\",IF((D33=\"Meals\"),\"Day\",IF((D33=\"Mileage\"),\"Mile\",IF((D33=\"Transportation\"),\"Round-trip\",\"N/A\"))))","v":"N/A"},null,null,null,null,{"$f":"CEILING(F33*G33*H33*I33,1)","v":0},null,{"$f":"IF(J33-K33<0,0,J33-K33)","v":0}]
[null,null,null,null,{"$f":"IF((D34=\"Lodging\"),\"Night\",IF((D34=\"Meals\"),\"Day\",IF((D34=\"Mileage\"),\"Mile\",IF((D34=\"Transportation\"),\"Round-trip\",\"N/A\"))))","v":"N/A"},null,null,null,null,{"$f":"CEILING(F34*G34*H34*I34,1)","v":0},null,{"$f":"IF(J34-K34<0,0,J34-K34)","v":0}]
[null,null,null,null,{"$f":"IF((D35=\"Lodging\"),\"Night\",IF((D35=\"Meals\"),\"Day\",IF((D35=\"Mileage\"),\"Mile\",IF((D35=\"Transportation\"),\"Round-trip\",\"N/A\"))))","v":"N/A"},null,null,null,null,{"$f":"CEILING(F35*G35*H35*I35,1)","v":0},null,{"$f":"IF(J35-K35<0,0,J35-K35)","v":0}]
["Total(es)",null,null,null,null,null,null,null,null,{"$f":"SUM(J33:J35)","v":0},{"$f":"SUM(K33:K35)","v":0},{"$f":"SUM(L33:L35)","v":0}]
["Descripción"]
[]
[]
["D. Equipamiento"]
["Elemento",null,null,"Cálculo"]
["Enumere y describa cada uno de los equipos que se van a adquirir",null,null,"Calcular el coste (por ejemplo, el número de cada artículo que hay que comprar X el coste por artículo)"]
[null,null,null,"# Número de elementos",null,"Coste unitario",null,null,null,"Coste total","Contribución no federal","Solicitud federal"]
[]
[null,null,null,null,null,null,null,null,null,{"$f":"CEILING(D45*F45,1)","v":0},null,{"$f":"IF(J45-K45<0,0,J45-K45)","v":0}]
[null,null,null,null,null,null,null,null,null,{"$f":"CEILING(D46*F46,1)","v":0},null,{"$f":"IF(J46-K46<0,0,J46-K46)","v":0}]
[null,null,null,null,null,null,null,null,null,{"$f":"CEILING(D47*F47,1)","v":0},null,{"$f":"IF(J47-K47<0,0,J47-K47)","v":0}]
["Total(es)",null,null,null,null,null,null,null,null,{"$f":"SUM(J45:J47)","v":0},{"$f":"SUM(K45:K47)","v":0},{"$f":"SUM(L45:L47)","v":0}]
["Descripción"]
["Utilice las directrices del Tesoro del Estado de Nueva Jersey que definen el Equipo como un artículo individual que cueste 1.000 dólares o más.  Utilice la política de capitalización propia de la Agencia si el Equipo se define como un artículo individual que cueste menos de 1.000 dólares."]
[]
["E. Suministros"]
["Artículos de suministro",null,null,"Cálculo"]
["Proporcione una lista de los tipos de artículos que se comprarán con los fondos de la subvención.",null,null,"Describa el artículo y calcule los costes. Cálculo: el número de cada artículo que hay que comprar X el coste por artículo."]
[null,null,null,"# Número de elementos",null,"Coste unitario",null,null,null,"Coste total","Contribución no federal","Solicitud federal"]
[]
[null,null,null,null,null,null,null,null,null,{"$f":"CEILING(D57*F57,1)","v":0},null,{"$f":"IF(J57-K57<0,0,J57-K57)","v":0}]
[null,null,null,null,null,null,null,null,null,{"$f":"CEILING(D58*F58,1)","v":0},null,{"$f":"IF(J58-K58<0,0,J58-K58)","v":0}]
[null,null,null,null,null,null,null,null,null,{"$f":"CEILING(D59*F59,1)","v":0},null,{"$f":"IF(J59-K59<0,0,J59-K59)","v":0}]
["Total(es)",null,null,null,null,null,null,null,null,{"$f":"SUM(J57:J59)","v":0},{"$f":"SUM(K57:K59)","v":0},{"$f":"SUM(L57:L59)","v":0}]
["Descripción"]
["Utilice las directrices del Tesoro del Estado de Nueva Jersey que definen los suministros como un artículo individual que cuesta menos de 1.000 dólares.  Utilice la política propia de la agencia si los suministros se definen como un artículo que cuesta menos de 999 dólares.     "]
[]
["F. Construcción"]
["Objetivo","Descripción del trabajo",null,"Cálculo"]
["Indicar la finalidad de la construcción","Describa el o los proyectos de construcción",null,"Calcular el coste (por ejemplo, el número de cada artículo que hay que comprar X el coste por artículo)"]
[null,null,null,"# Número de elementos",null,"Costo",null,null,null,"Coste total","Contribución no federal","Solicitud federal"]
[]
[null,null,null,null,null,null,null,null,null,{"$f":"CEILING(D69*F69,1)","v":0},null,{"$f":"IF(J69-K69<0,0,J69-K69)","v":0}]
[null,null,null,null,null,null,null,null,null,{"$f":"CEILING(D70*F70,1)","v":0},null,{"$f":"IF(J70-K70<0,0,J70-K70)","v":0}]
[null,null,null,null,null,null,null,null,null,{"$f":"CEILING(D71*F71,1)","v":0},null,{"$f":"IF(J71-K71<0,0,J71-K71)","v":0}]
["Total(es)",null,null,null,null,null,null,null,null,{"$f":"SUM(J69:J71)","v":0},{"$f":"SUM(K69:K71)","v":0},{"$f":"SUM(L69:L71)","v":0}]
["Descripción"]
[]
[]
["G. Subconcesiones (subvenciones)"]
["Descripción",null,"Objetivo",null,null,null,null,"¿Asesor?"]
["Describa las actividades que llevarán a cabo los subreceptores.",null,"Describa la finalidad de la subconcesión (subvención)",null,null,null,null,"¿La subvención es para un consultor? En caso afirmativo, utilice la sección siguiente para explicar los gastos de viaje asociados incluidos en el coste."]
[null,null,null,null,null,null,null,null,null,"Coste total","Contribución no federal","Solicitud federal"]
[]
[null,null,null,null,null,null,null,null,null,null,null,{"$f":"IF(J81-K81<0,0,J81-K81)","v":0}]
[null,null,null,null,null,null,null,null,null,null,null,{"$f":"IF(J82-K82<0,0,J82-K82)","v":0}]
[null,null,null,null,null,null,null,null,null,null,null,{"$f":"IF(J83-K83<0,0,J83-K83)","v":0}]
["Total(es)",null,null,null,null,null,null,null,null,{"$f":"SUM(J81:J83)+J93","v":0},{"$f":"SUM(K81:K83)+K93","v":0},{"$f":"SUM(L81:L83)+L93","v":0}]
["Viajes de los asesores (de ser necesarios)"]
["Propósito del viaje","Ubicación",null,"Tipo de gasto",null,null,"Cálculo"]
["Indique el objetivo de cada viaje o tipo de viaje (formación, reunión del grupo consultivo)","Indique el destino del viaje.",null,"Hotel, pasajes aéreos, viáticos",null,null,"Calcula el coste de cada tipo de gasto X el número de personas que viajan."]
[null,null,null,null,null,null,"Costo","Duración o distancia","# de Personal","Coste total","Contribución no federal","Solicitud federal"]
[]
[null,null,null,null,null,null,null,null,null,{"$f":"CEILING(G90*H90*I90,1)","v":0},null,{"$f":"IF(J90-K90<0,0,J90-K90)","v":0}]
[null,null,null,null,null,null,null,null,null,{"$f":"CEILING(G91*H91*I91,1)","v":0},null,{"$f":"IF(J91-K91<0,0,J91-K91)","v":0}]
[null,null,null,null,null,null,null,null,null,{"$f":"CEILING(G92*H92*I92,1)","v":0},null,{"$f":"IF(J92-K92<0,0,J92-K92)","v":0}]
["Total",null,null,null,null,null,null,null,null,{"$f":"SUM(J90:J92)","v":0},{"$f":"SUM(K90:K92)","v":0},{"$f":"SUM(L90:L92)","v":0}]
["Descripción"]
[]
[]
["H. Contratos de adquisición"]
["Descripción",null,"Objetivo",null,null,null,null,"¿Asesor?"]
["Describa el producto o servicio que se va a adquirir por contrato y haga una estimación del coste.  Se anima a los solicitantes a promover la competencia libre y abierta en la adjudicación de contratos.  Se debe proporcionar una justificación separada para las adquisiciones de fuente única que superen el Umbral de Adquisición Simplificada (actualmente 150.000 dólares). ",null,"Describa el propósito del contrato",null,null,null,null,"¿La subvención es para un consultor? En caso afirmativo, utilice la sección siguiente para explicar los gastos de viaje asociados incluidos en el coste."]
[null,null,null,null,null,null,null,null,null,"Coste total","Contribución no federal","Solicitud federal"]
[]
[null,null,null,null,null,null,null,null,null,null,null,{"$f":"IF(J102-K102<0,0,J102-K102)","v":0}]
[null,null,null,null,null,null,null,null,null,null,null,{"$f":"IF(J103-K103<0,0,J103-K103)","v":0}]
[null,null,null,null,null,null,null,null,null,null,null,{"$f":"IF(J104-K104<0,0,J104-K104)","v":0}]
["Total(es)",null,null,null,null,null,null,null,null,{"$f":"SUM(J102:J104)+J114","v":0},{"$f":"SUM(K102:K104)+K114","v":0},{"$f":"SUM(L102:L104)+L114","v":0}]
["Viajes de los asesores (de ser necesarios)"]
["Propósito del viaje","Ubicación",null,"Tipo de gasto",null,null,"Cálculo"]
["Indique el objetivo de cada viaje o tipo de viaje (formación, reunión del grupo consultivo)","Indique el destino del viaje.",null,"Hotel, pasajes aéreos, viáticos",null,null,"Calcula el coste de cada tipo de gasto X el número de personas que viajan."]
[null,null,null,null,null,null,"Costo","Duración o distancia","# de Personal","Coste total","Contribución no federal","Solicitud federal"]
[]
[null,null,null,null,null,null,null,null,null,{"$f":"CEILING(G111*H111*I111,1)","v":0},null,{"$f":"IF(J111-K111<0,0,J111-K111)","v":0}]
[null,null,null,null,null,null,null,null,null,{"$f":"CEILING(G112*H112*I112,1)","v":0},null,{"$f":"IF(J112-K112<0,0,J112-K112)","v":0}]
[null,null,null,null,null,null,null,null,null,{"$f":"CEILING(G113*H113*I113,1)","v":0},null,{"$f":"IF(J113-K113<0,0,J113-K113)","v":0}]
["Total",null,null,null,null,null,null,null,null,{"$f":"SUM(J111:J113)","v":0},{"$f":"SUM(K111:K113)","v":0},{"$f":"SUM(L111:L113)","v":0}]
["Descripción"]
[]
[]
["I. Otros costes"]
["Descripción ",null,"Cálculo"]
["Enumere y describa los elementos que se pagarán con los fondos de las subvenciones (por ejemplo, alquiler, copias, teléfono, conserjería o servicios de seguridad, y fondos de investigación o confidenciales).",null,"Mostrar la base de cálculo"]
[null,null,"Cantidad",null,"Base","Costo",null,"Duración",null,"Coste total","Contribución no federal","Solicitud federal"]
[]
[null,null,null,null,null,null,null,null,null,{"$f":"CEILING(C123*F123*H123,1)","v":0},null,{"$f":"IF(J123-K123<0,0,J123-K123)","v":0}]
[null,null,null,null,null,null,null,null,null,{"$f":"CEILING(C124*F124*H124,1)","v":0},null,{"$f":"IF(J124-K124<0,0,J124-K124)","v":0}]
[null,null,null,null,null,null,null,null,null,{"$f":"CEILING(C125*F125*H125,1)","v":0},null,{"$f":"IF(J125-K125<0,0,J125-K125)","v":0}]
["Total(es)",null,null,null,null,null,null,null,null,{"$f":"SUM(J123:J125)","v":0},{"$f":"SUM(K123:K125)","v":0},{"$f":"SUM(L123:L125)","v":0}]
["Descripción"]
[]
[]
["J. Costos indirectos"]
["Descripción",null,null,"Cálculo"]
["Describa cuál es la tasa aprobada y cómo se aplica.",null,null,"Calcule los costes indirectos para las partes del programa que permiten tales costes."]
[null,null,null,"Base",null,"Tasa de costos indirectos",null,null,null,"Coste total","Contribución no federal","Solicitud federal"]
[]
[null,null,null,null,null,null,null,null,null,{"$f":"CEILING(D135*F135,1)","v":0},null,{"$f":"IF(J135-K135<0,0,J135-K135)","v":0}]
[null,null,null,null,null,null,null,null,null,{"$f":"CEILING(D136*F136,1)","v":0},null,{"$f":"IF(J136-K136<0,0,J136-K136)","v":0}]
[null,null,null,null,null,null,null,null,null,{"$f":"CEILING(D137*F137,1)","v":0},null,{"$f":"IF(J137-K137<0,0,J137-K137)","v":0}]
["Total(es)",null,null,null,null,null,null,null,null,{"$f":"SUM(J135:J137)","v":0},{"$f":"SUM(K135:K137)","v":0},{"$f":"SUM(L135:L137)","v":0}]
["Descripción"]

{"sheet":"Detalle del presupuesto Año 2","index":3,"n_rows":139,"n_cols":12,"rows_kept":139,"cut":false,"hidden":false,"merged":[[136,0,136,2],[136,3,136,4],[136,5,136,8],[137,0,137,8],[139,0,140,11],[134,0,134,2],[134,3,134,4],[134,5,134,8],[135,0,135,2],[135,3,135,4],[135,5,135,8],[130,0,130,2],[130,3,130,11],[131,0,131,2],[131,3,131,11],[132,0,133,2],[132,3,133,4],[132,5,133,8],[132,9,133,9],[132,10,133,10],[132,11,133,11],[124,0,124,1],[124,2,124,3],[124,5,124,6],[124,7,124,8],[125,0,125,8],[127,0,128,11],[120,11,121,11],[122,0,122,1],[122,2,122,3],[122,5,122,6],[122,7,122,8],[123,0,123,1],[123,2,123,3],[123,5,123,6],[123,7,123,8],[120,2,121,3],[120,4,121,4],[120,5,121,6],[120,7,121,8],[120,9,121,9],[120,10,121,10],[113,0,113,8],[115,0,116,11],[118,0,118,1],[118,2,118,11],[119,0,119,1],[119,2,119,11],[110,1,110,2],[110,3,110,5],[111,1,111,2],[111,3,111,5],[112,1,112,2],[112,3,112,5],[107,1,107,2],[107,3,107,5],[107,6,107,11],[108,0,109,5],[108,6,109,6],[108,7,109,7],[108,8,109,8],[108,9,109,9],[108,10,109,10],[108,11,109,11],[103,0,103,1],[103,2,103,6],[103,7,103,8],[104,0,104,8],[105,0,105,1],[106,1,106,2],[106,3,106,5],[106,6,106,11],[99,11,100,11],[101,0,101,1],[101,2,101,6],[101,7,101,8],[102,0,102,1],[102,2,102,6],[102,7,102,8],[98,0,98,1],[98,2,98,6],[98,7,98,8],[99,0,100,1],[99,9,100,9],[99,10,100,10],[92,0,92,8],[94,0,95,11],[96,0,96,1],[97,0,97,1],[97,2,97,6],[97,7,97,8],[87,11,88,11],[89,1,89,2],[89,3,89,5],[90,1,90,2],[90,3,90,5],[91,1,91,2],[91,3,91,5],[87,0,88,5],[87,6,88,6],[87,7,88,7],[87,8,88,8],[87,9,88,9],[87,10,88,10],[83,0,83,8],[84,0,84,1],[85,1,85,2],[85,3,85,5],[85,6,85,11],[86,1,86,2],[86,3,86,5],[86,6,86,11],[81,0,81,1],[81,2,81,6],[81,7,81,8],[82,0,82,1],[82,2,82,6],[82,7,82,8],[78,9,79,9],[78,10,79,10],[78,11,79,11],[80,0,80,1],[80,2,80,6],[80,7,80,8],[76,0,76,1],[76,2,76,6],[76,7,76,8],[76,9,77,11],[77,0,77,1],[77,2,77,6],[77,7,77,8],[70,1,70,2],[70,3,70,4],[70,5,70,8],[71,0,71,8],[73,0,74,11],[75,0,75,1],[68,1,68,2],[68,3,68,4],[68,5,68,8],[69,1,69,2],[69,3,69,4],[69,5,69,8],[65,1,65,2],[65,3,65,11],[66,0,67,2],[66,3,67,4],[66,5,67,8],[66,9,67,9],[66,10,67,10],[66,11,67,11],[58,0,58,2],[58,3,58,4],[58,5,58,8],[59,0,59,8],[61,0,62,11],[64,1,64,2],[64,3,64,11],[56,0,56,2],[56,3,56,4],[56,5,56,8],[57,0,57,2],[57,3,57,4],[57,5,57,8],[53,0,53,2],[53,3,53,11],[54,0,55,2],[54,3,55,4],[54,5,55,8],[54,9,55,9],[54,10,55,10],[54,11,55,11],[46,0,46,2],[46,3,46,4],[46,5,46,8],[47,0,47,8],[49,0,50,11],[52,0,52,2],[52,3,52,11],[44,0,44,2],[44,3,44,4],[44,5,44,8],[45,0,45,2],[45,3,45,4],[45,5,45,8],[41,0,41,2],[41,3,41,11],[42,0,43,2],[42,3,43,4],[42,5,43,8],[42,9,43,9],[42,10,43,10],[42,11,43,11],[32,1,32,2],[33,1,33,2],[34,1,34,2],[35,0,35,8],[37,0,38,11],[40,0,40,2],[40,3,40,11],[29,1,29,2],[29,5,29,11],[30,0,31,4],[30,5,31,5],[30,6,31,6],[30,7,31,7],[30,8,31,8],[30,9,31,9],[30,10,31,10],[30,11,31,11],[22,0,22,2],[22,3,22,4],[22,5,22,8],[23,0,23,8],[25,0,26,11],[28,1,28,2],[28,5,28,11],[20,0,20,2],[20,3,20,4],[20,5,20,8],[21,0,21,2],[21,3,21,4],[21,5,21,8],[17,0,17,2],[17,3,17,11],[18,0,19,2],[18,3,19,4],[18,5,19,8],[18,9,19,9],[18,10,19,10],[18,11,19,11],[10,2,10,3],[10,5,10,6],[10,7,10,8],[11,0,11,8],[13,0,14,11],[16,0,16,2],[16,3,16,11],[9,2,9,3],[9,5,9,6],[9,7,9,8],[5,2,5,11],[6,0,7,1],[6,2,7,3],[6,4,7,4],[6,5,7,6],[6,7,7,8],[6,9,7,9],[6,10,7,10],[6,11,7,11],[0,0,0,5],[0,7,0,11],[1,0,1,9],[1,10,2,11],[2,0,2,1],[4,2,4,11],[8,2,8,3],[8,5,8,6],[8,7,8,8]]}
[{"$f":"'Instrucciones para la hoja de p'!A18","v":"Detalle del presupuesto Año 2"}]
["¿Incluye este presupuesto los costes de conferencias, que se definen de forma amplia para incluir reuniones, retiros, seminarios, simposios y actividades de formación? S/N"]
["(Guía financiera del DOJ, sección 3.10)"]
["A. Personal"]
["Nombre","Cargo","Cálculo"]
["Mencione cada nombre, en caso de que lo conozca.","Mencione cada Cargo, en caso de que lo conozca.","Indique la tasa de salario anual y la cantidad de tiempo dedicado al proyecto para cada nombre/puesto."]
[null,null,"Salario ",null,"Tasa","Tiempo trabajado\n(número de horas, días, meses, años) ",null,"Porcentaje de tiempo",null,"Coste total","Contribución no federal","Solicitud federal"]
[]
[null,null,null,null,null,null,null,null,null,{"$f":"CEILING(C9*F9*H9,1)","v":0},null,{"$f":"IF(J9-K9<0,0,J9-K9)","v":0}]
[null,null,null,null,null,null,null,null,null,{"$f":"CEILING(C10*F10*H10,1)","v":0},null,{"$f":"IF(J10-K10<0,0,J10-K10)","v":0}]
[null,null,null,null,null,null,null,null,null,{"$f":"CEILING(C11*F11*H11,1)","v":0},null,{"$f":"IF(J11-K11<0,0,J11-K11)","v":0}]
["Total(es)",null,null,null,null,null,null,null,null,{"$f":"SUM(J9:J11)","v":0},{"$f":"SUM(K9:K11)","v":0},{"$f":"SUM(L9:L11)","v":0}]
["Descripción"]
[]
[]
["B. Beneficios adicionales"]
["Nombre",null,null,"Cálculo"]
["Enumere cada uno de los puestos financiados por la subvención que reciban beneficios adicionales.",null,null,"Mostrar la base de cálculo"]
[null,null,null,"Base",null,"Tasa",null,null,null,"Coste total","Contribución no federal","Solicitud federal"]
[]
[null,null,null,null,null,null,null,null,null,{"$f":"CEILING(D21*F21,1)","v":0},null,{"$f":"IF(J21-K21<0,0,J21-K21)","v":0}]
[null,null,null,null,null,null,null,null,null,{"$f":"CEILING(D22*F22,1)","v":0},null,{"$f":"IF(J22-K22<0,0,J22-K22)","v":0}]
[null,null,null,null,null,null,null,null,null,{"$f":"CEILING(D23*F23,1)","v":0},null,{"$f":"IF(J23-K23<0,0,J23-K23)","v":0}]
["Total(es)",null,null,null,null,null,null,null,null,{"$f":"SUM(J21:J23)","v":0},{"$f":"SUM(K21:K23)","v":0},{"$f":"SUM(L21:L23)","v":0}]
["Descripción"]
[]
[]
["C. Viajes"]
["Propósito del viaje","Ubicación",null,"Tipo de gasto","Base","Cálculo"]
["Indique el objetivo de cada viaje o tipo de viaje (formación, reunión del grupo consultivo)","Indique el destino del viaje.",null,"Alojamiento, comidas, etc.","Por día, milla, viaje, etc.","Calcula el coste de cada tipo de gasto X el número de personas que viajan."]
[null,null,null,null,null,"Costo","Cantidad","# de Personal","# Número de viajes","Coste total","Contribución no federal","Solicitud federal"]
[]
[null,null,null,null,{"$f":"IF((D33=\"Lodging\"),\"Night\",IF((D33=\"Meals\"),\"Day\",IF((D33=\"Mileage\"),\"Mile\",IF((D33=\"Transportation\"),\"Round-trip\",\"N/A\"))))","v":"N/A"},null,null,null,null,{"$f":"CEILING(F33*G33*H33*I33,1)","v":0},null,{"$f":"IF(J33-K33<0,0,J33-K33)","v":0}]
[null,null,null,null,{"$f":"IF((D34=\"Lodging\"),\"Night\",IF((D34=\"Meals\"),\"Day\",IF((D34=\"Mileage\"),\"Mile\",IF((D34=\"Transportation\"),\"Round-trip\",\"N/A\"))))","v":"N/A"},null,null,null,null,{"$f":"CEILING(F34*G34*H34*I34,1)","v":0},null,{"$f":"IF(J34-K34<0,0,J34-K34)","v":0}]
[null,null,null,null,{"$f":"IF((D35=\"Lodging\"),\"Night\",IF((D35=\"Meals\"),\"Day\",IF((D35=\"Mileage\"),\"Mile\",IF((D35=\"Transportation\"),\"Round-trip\",\"N/A\"))))","v":"N/A"},null,null,null,null,{"$f":"CEILING(F35*G35*H35*I35,1)","v":0},null,{"$f":"IF(J35-K35<0,0,J35-K35)","v":0}]
["Total(es)",null,null,null,null,null,null,null,null,{"$f":"SUM(J33:J35)","v":0},{"$f":"SUM(K33:K35)","v":0},{"$f":"SUM(L33:L35)","v":0}]
["Descripción"]
[]
[]
["D. Equipamiento"]
["Elemento",null,null,"Cálculo"]
["Enumere y describa cada uno de los equipos que se van a adquirir",null,null,"Calcular el coste (por ejemplo, el número de cada artículo que hay que comprar X el coste por artículo)"]
[null,null,null,"# Número de elementos",null,"Coste unitario",null,null,null,"Coste total","Contribución no federal","Solicitud federal"]
[]
[null,null,null,null,null,null,null,null,null,{"$f":"CEILING(D45*F45,1)","v":0},null,{"$f":"IF(J45-K45<0,0,J45-K45)","v":0}]
[null,null,null,null,null,null,null,null,null,{"$f":"CEILING(D46*F46,1)","v":0},null,{"$f":"IF(J46-K46<0,0,J46-K46)","v":0}]
[null,null,null,null,null,null,null,null,null,{"$f":"CEILING(D47*F47,1)","v":0},null,{"$f":"IF(J47-K47<0,0,J47-K47)","v":0}]
["Total(es)",null,null,null,null,null,null,null,null,{"$f":"SUM(J45:J47)","v":0},{"$f":"SUM(K45:K47)","v":0},{"$f":"SUM(L45:L47)","v":0}]
["Descripción"]
["Utilice las directrices del Tesoro del Estado de Nueva Jersey que definen el Equipo como un artículo individual que cueste 1.000 dólares o más.  Utilice la política de capitalización propia de la Agencia si el Equipo se define como un artículo individual que cueste menos de 1.000 dólares."]
[]
["E. Suministros"]
["Artículos de suministro",null,null,"Cálculo"]
["Proporcione una lista de los tipos de artículos que se comprarán con los fondos de la subvención.",null,null,"Describa el artículo y calcule los costes. Cálculo: el número de cada artículo que hay que comprar X el coste por artículo."]
[null,null,null,"# Número de elementos",null,"Coste unitario",null,null,null,"Coste total","Contribución no federal","Solicitud federal"]
[]
[null,null,null,null,null,null,null,null,null,{"$f":"CEILING(D57*F57,1)","v":0},null,{"$f":"IF(J57-K57<0,0,J57-K57)","v":0}]
[null,null,null,null,null,null,null,null,null,{"$f":"CEILING(D58*F58,1)","v":0},null,{"$f":"IF(J58-K58<0,0,J58-K58)","v":0}]
[null,null,null,null,null,null,null,null,null,{"$f":"CEILING(D59*F59,1)","v":0},null,{"$f":"IF(J59-K59<0,0,J59-K59)","v":0}]
["Total(es)",null,null,null,null,null,null,null,null,{"$f":"SUM(J57:J59)","v":0},{"$f":"SUM(K57:K59)","v":0},{"$f":"SUM(L57:L59)","v":0}]
["Descripción"]
["Utilice las directrices del Tesoro del Estado de Nueva Jersey que definen los suministros como un artículo individual que cuesta menos de 1.000 dólares.  Utilice la política propia de la agencia si los suministros se definen como un artículo que cuesta menos de 999 dólares.     "]
[]
["F. Construcción"]
["Objetivo","Descripción del trabajo",null,"Cálculo"]
["Indicar la finalidad de la construcción","Describa el o los proyectos de construcción",null,"Calcular el coste (por ejemplo, el número de cada artículo que hay que comprar X el coste por artículo)"]
[null,null,null,"# Número de elementos",null,"Costo",null,null,null,"Coste total","Contribución no federal","Solicitud federal"]
[]
[null,null,null,null,null,null,null,null,null,{"$f":"CEILING(D69*F69,1)","v":0},null,{"$f":"IF(J69-K69<0,0,J69-K69)","v":0}]
[null,null,null,null,null,null,null,null,null,{"$f":"CEILING(D70*F70,1)","v":0},null,{"$f":"IF(J70-K70<0,0,J70-K70)","v":0}]
[null,null,null,null,null,null,null,null,null,{"$f":"CEILING(D71*F71,1)","v":0},null,{"$f":"IF(J71-K71<0,0,J71-K71)","v":0}]
["Total(es)",null,null,null,null,null,null,null,null,{"$f":"SUM(J69:J71)","v":0},{"$f":"SUM(K69:K71)","v":0},{"$f":"SUM(L69:L71)","v":0}]
["Descripción"]
[]
[]
["G. Subconcesiones (subvenciones)"]
["Descripción",null,"Objetivo",null,null,null,null,"¿Asesor?"]
["Describa las actividades que llevarán a cabo los subreceptores.",null,"Describa la finalidad de la subconcesión (subvención)",null,null,null,null,"¿La subvención es para un consultor? En caso afirmativo, utilice la sección siguiente para explicar los gastos de viaje asociados incluidos en el coste."]
[null,null,null,null,null,null,null,null,null,"Coste total","Contribución no federal","Solicitud federal"]
[]
[null,null,null,null,null,null,null,null,null,null,null,{"$f":"IF(J81-K81<0,0,J81-K81)","v":0}]
[null,null,null,null,null,null,null,null,null,null,null,{"$f":"IF(J82-K82<0,0,J82-K82)","v":0}]
[null,null,null,null,null,null,null,null,null,null,null,{"$f":"IF(J83-K83<0,0,J83-K83)","v":0}]
["Total(es)",null,null,null,null,null,null,null,null,{"$f":"SUM(J81:J83)+J93","v":0},{"$f":"SUM(K81:K83)+K93","v":0},{"$f":"SUM(L81:L83)+L93","v":0}]
["Viajes de los asesores (de ser necesarios)"]
["Propósito del viaje","Ubicación",null,"Tipo de gasto",null,null,"Cálculo"]
["Indique el objetivo de cada viaje o tipo de viaje (formación, reunión del grupo consultivo)","Indique el destino del viaje.",null,"Hotel, pasajes aéreos, viáticos",null,null,"Calcula el coste de cada tipo de gasto X el número de personas que viajan."]
[null,null,null,null,null,null,"Costo","Duración o distancia","# de Personal","Coste total","Contribución no federal","Solicitud federal"]
[]
[null,null,null,null,null,null,null,null,null,{"$f":"CEILING(G90*H90*I90,1)","v":0},null,{"$f":"IF(J90-K90<0,0,J90-K90)","v":0}]
[null,null,null,null,null,null,null,null,null,{"$f":"CEILING(G91*H91*I91,1)","v":0},null,{"$f":"IF(J91-K91<0,0,J91-K91)","v":0}]
[null,null,null,null,null,null,null,null,null,{"$f":"CEILING(G92*H92*I92,1)","v":0},null,{"$f":"IF(J92-K92<0,0,J92-K92)","v":0}]
["Total",null,null,null,null,null,null,null,null,{"$f":"SUM(J90:J92)","v":0},{"$f":"SUM(K90:K92)","v":0},{"$f":"SUM(L90:L92)","v":0}]
["Descripción"]
[]
[]
["H. Contratos de adquisición"]
["Descripción",null,"Objetivo",null,null,null,null,"¿Asesor?"]
["Describa el producto o servicio que se va a adquirir por contrato y haga una estimación del coste.  Se anima a los solicitantes a promover la competencia libre y abierta en la adjudicación de contratos.  Se debe proporcionar una justificación separada para las adquisiciones de fuente única que superen el Umbral de Adquisición Simplificada (actualmente 150.000 dólares). ",null,"Describa el propósito del contrato",null,null,null,null,"¿La subvención es para un consultor? En caso afirmativo, utilice la sección siguiente para explicar los gastos de viaje asociados incluidos en el coste."]
[null,null,null,null,null,null,null,null,null,"Coste total","Contribución no federal","Solicitud federal"]
[]
[null,null,null,null,null,null,null,null,null,null,null,{"$f":"IF(J102-K102<0,0,J102-K102)","v":0}]
[null,null,null,null,null,null,null,null,null,null,null,{"$f":"IF(J103-K103<0,0,J103-K103)","v":0}]
[null,null,null,null,null,null,null,null,null,null,null,{"$f":"IF(J104-K104<0,0,J104-K104)","v":0}]
["Total(es)",null,null,null,null,null,null,null,null,{"$f":"SUM(J102:J104)+J114","v":0},{"$f":"SUM(K102:K104)+K114","v":0},{"$f":"SUM(L102:L104)+L114","v":0}]
["Viajes de los asesores (de ser necesarios)"]
["Propósito del viaje","Ubicación",null,"Tipo de gasto",null,null,"Cálculo"]
["Indique el objetivo de cada viaje o tipo de viaje (formación, reunión del grupo consultivo)","Indique el destino del viaje.",null,"Hotel, pasajes aéreos, viáticos",null,null,"Calcula el coste de cada tipo de gasto X el número de personas que viajan."]
[null,null,null,null,null,null,"Costo","Duración o distancia","# de Personal","Coste total","Contribución no federal","Solicitud federal"]
[]
[null,null,null,null,null,null,null,null,null,{"$f":"CEILING(G111*H111*I111,1)","v":0},null,{"$f":"IF(J111-K111<0,0,J111-K111)","v":0}]
[null,null,null,null,null,null,null,null,null,{"$f":"CEILING(G112*H112*I112,1)","v":0},null,{"$f":"IF(J112-K112<0,0,J112-K112)","v":0}]
[null,null,null,null,null,null,null,null,null,{"$f":"CEILING(G113*H113*I113,1)","v":0},null,{"$f":"IF(J113-K113<0,0,J113-K113)","v":0}]
["Total",null,null,null,null,null,null,null,null,{"$f":"SUM(J111:J113)","v":0},{"$f":"SUM(K111:K113)","v":0},{"$f":"SUM(L111:L113)","v":0}]
["Descripción"]
[]
[]
["I. Otros costes"]
["Descripción ",null,"Cálculo"]
["Enumere y describa los elementos que se pagarán con los fondos de las subvenciones (por ejemplo, alquiler, copias, teléfono, conserjería o servicios de seguridad, y fondos de investigación o confidenciales).",null,"Mostrar la base de cálculo"]
[null,null,"Cantidad",null,"Base","Costo",null,"Duración",null,"Coste total","Contribución no federal","Solicitud federal"]
[]
[null,null,null,null,null,null,null,null,null,{"$f":"CEILING(C123*F123*H123,1)","v":0},null,{"$f":"IF(J123-K123<0,0,J123-K123)","v":0}]
[null,null,null,null,null,null,null,null,null,{"$f":"CEILING(C124*F124*H124,1)","v":0},null,{"$f":"IF(J124-K124<0,0,J124-K124)","v":0}]
[null,null,null,null,null,null,null,null,null,{"$f":"CEILING(C125*F125*H125,1)","v":0},null,{"$f":"IF(J125-K125<0,0,J125-K125)","v":0}]
["Total(es)",null,null,null,null,null,null,null,null,{"$f":"SUM(J123:J125)","v":0},{"$f":"SUM(K123:K125)","v":0},{"$f":"SUM(L123:L125)","v":0}]
["Descripción"]
[]
[]
["J. Costos indirectos"]
["Descripción",null,null,"Cálculo"]
["Describa cuál es la tasa aprobada y cómo se aplica.",null,null,"Calcule los costes indirectos para las partes del programa que permiten tales costes."]
[null,null,null,"Base",null,"Tasa de costos indirectos",null,null,null,"Coste total","Contribución no federal","Solicitud federal"]
[]
[null,null,null,null,null,null,null,null,null,{"$f":"CEILING(D135*F135,1)","v":0},null,{"$f":"IF(J135-K135<0,0,J135-K135)","v":0}]
[null,null,null,null,null,null,null,null,null,{"$f":"CEILING(D136*F136,1)","v":0},null,{"$f":"IF(J136-K136<0,0,J136-K136)","v":0}]
[null,null,null,null,null,null,null,null,null,{"$f":"CEILING(D137*F137,1)","v":0},null,{"$f":"IF(J137-K137<0,0,J137-K137)","v":0}]
["Total(es)",null,null,null,null,null,null,null,null,{"$f":"SUM(J135:J137)","v":0},{"$f":"SUM(K135:K137)","v":0},{"$f":"SUM(L135:L137)","v":0}]
["Descripción"]

{"sheet":"Detalle del presupuesto Año 3","index":4,"n_rows":139,"n_cols":12,"rows_kept":139,"cut":false,"hidden":false,"merged":[[0,0,0,5],[0,7,0,11],[1,0,1,9],[1,10,2,11],[2,0,2,1],[4,2,4,11],[8,2,8,3],[8,5,8,6],[8,7,8,8],[9,2,9,3],[9,5,9,6],[9,7,9,8],[5,2,5,11],[6,0,7,1],[6,2,7,3],[6,4,7,4],[6,5,7,6],[6,7,7,8],[6,9,7,9],[6,10,7,10],[6,11,7,11],[17,0,17,2],[17,3,17,11],[18,0,19,2],[18,3,19,4],[18,5,19,8],[18,9,19,9],[18,10,19,10],[18,11,19,11],[10,2,10,3],[10,5,10,6],[10,7,10,8],[11,0,11,8],[13,0,14,11],[16,0,16,2],[16,3,16,11],[22,0,22,2],[22,3,22,4],[22,5,22,8],[23,0,23,8],[25,0,26,11],[28,1,28,2],[28,5,28,11],[20,0,20,2],[20,3,20,4],[20,5,20,8],[21,0,21,2],[21,3,21,4],[21,5,21,8],[29,1,29,2],[29,5,29,11],[30,0,31,4],[30,5,31,5],[30,6,31,6],[30,7,31,7],[30,8,31,8],[30,9,31,9],[30,10,31,10],[30,11,31,11],[41,0,41,2],[41,3,41,11],[42,0,43,2],[42,3,43,4],[42,5,43,8],[42,9,43,9],[42,10,43,10],[42,11,43,11],[32,1,32,2],[33,1,33,2],[34,1,34,2],[35,0,35,8],[37,0,38,11],[40,0,40,2],[40,3,40,11],[46,0,46,2],[46,3,46,4],[46,5,46,8],[47,0,47,8],[49,0,50,11],[52,0,52,2],[52,3,52,11],[44,0,44,2],[44,3,44,4],[44,5,44,8],[45,0,45,2],[45,3,45,4],[45,5,45,8],[56,0,56,2],[56,3,56,4],[56,5,56,8],[57,0,57,2],[57,3,57,4],[57,5,57,8],[53,0,53,2],[53,3,53,11],[54,0,55,2],[54,3,55,4],[54,5,55,8],[54,9,55,9],[54,10,55,10],[54,11,55,11],[65,1,65,2],[65,3,65,11],[66,0,67,2],[66,3,67,4],[66,5,67,8],[66,9,67,9],[66,10,67,10],[66,11,67,11],[58,0,58,2],[58,3,58,4],[58,5,58,8],[59,0,59,8],[61,0,62,11],[64,1,64,2],[64,3,64,11],[70,1,70,2],[70,3,70,4],[70,5,70,8],[71,0,71,8],[73,0,74,11],[75,0,75,1],[68,1,68,2],[68,3,68,4],[68,5,68,8],[69,1,69,2],[69,3,69,4],[69,5,69,8],[78,9,79,9],[78,10,79,10],[78,11,79,11],[80,0,80,1],[80,2,80,6],[80,7,80,8],[76,0,76,1],[76,2,76,6],[76,7,76,8],[76,9,77,11],[77,0,77,1],[77,2,77,6],[77,7,77,8],[83,0,83,8],[84,0,84,1],[85,1,85,2],[85,3,85,5],[85,6,85,11],[86,1,86,2],[86,3,86,5],[86,6,86,11],[81,0,81,1],[81,2,81,6],[81,7,81,8],[82,0,82,1],[82,2,82,6],[82,7,82,8],[87,11,88,11],[89,1,89,2],[89,3,89,5],[90,1,90,2],[90,3,90,5],[91,1,91,2],[91,3,91,5],[87,0,88,5],[87,6,88,6],[87,7,88,7],[87,8,88,8],[87,9,88,9],[87,10,88,10],[98,0,98,1],[98,2,98,6],[98,7,98,8],[99,0,100,1],[99,9,100,9],[99,10,100,10],[92,0,92,8],[94,0,95,11],[96,0,96,1],[97,0,97,1],[97,2,97,6],[97,7,97,8],[103,0,103,1],[103,2,103,6],[103,7,103,8],[104,0,104,8],[105,0,105,1],[106,1,106,2],[106,3,106,5],[106,6,106,11],[99,11,100,11],[101,0,101,1],[101,2,101,6],[101,7,101,8],[102,0,102,1],[102,2,102,6],[102,7,102,8],[107,1,107,2],[107,3,107,5],[107,6,107,11],[108,0,109,5],[108,6,109,6],[108,7,109,7],[108,8,109,8],[108,9,109,9],[108,10,109,10],[108,11,109,11],[113,0,113,8],[115,0,116,11],[118,0,118,1],[118,2,118,11],[119,0,119,1],[119,2,119,11],[110,1,110,2],[110,3,110,5],[111,1,111,2],[111,3,111,5],[112,1,112,2],[112,3,112,5],[124,0,124,1],[124,2,124,3],[124,5,124,6],[124,7,124,8],[125,0,125,8],[127,0,128,11],[120,11,121,11],[122,0,122,1],[122,2,122,3],[122,5,122,6],[122,7,122,8],[123,0,123,1],[123,2,123,3],[123,5,123,6],[123,7,123,8],[120,2,121,3],[120,4,121,4],[120,5,121,6],[120,7,121,8],[120,9,121,9],[120,10,121,10],[130,0,130,2],[130,3,130,11],[131,0,131,2],[131,3,131,11],[132,0,133,2],[132,3,133,4],[132,5,133,8],[132,9,133,9],[132,10,133,10],[132,11,133,11],[136,0,136,2],[136,3,136,4],[136,5,136,8],[137,0,137,8],[139,0,140,11],[134,0,134,2],[134,3,134,4],[134,5,134,8],[135,0,135,2],[135,3,135,4],[135,5,135,8]]}
[{"$f":"'Instrucciones para la hoja de p'!A19","v":"Detalle del presupuesto Año 3"}]
["¿Incluye este presupuesto los costes de conferencias, que se definen de forma amplia para incluir reuniones, retiros, seminarios, simposios y actividades de formación? S/N"]
["(Guía financiera del DOJ, sección 3.10)"]
["A. Personal"]
["Nombre","Cargo","Cálculo"]
["Mencione cada nombre, en caso de que lo conozca.","Mencione cada Cargo, en caso de que lo conozca.","Indique la tasa de salario anual y la cantidad de tiempo dedicado al proyecto para cada nombre/puesto."]
[null,null,"Salario ",null,"Tasa","Tiempo trabajado\n(número de horas, días, meses, años) ",null,"Porcentaje de tiempo",null,"Coste total","Contribución no federal","Solicitud federal"]
[]
[null,null,null,null,null,null,null,null,null,{"$f":"CEILING(C9*F9*H9,1)","v":0},null,{"$f":"IF(J9-K9<0,0,J9-K9)","v":0}]
[null,null,null,null,null,null,null,null,null,{"$f":"CEILING(C10*F10*H10,1)","v":0},null,{"$f":"IF(J10-K10<0,0,J10-K10)","v":0}]
[null,null,null,null,null,null,null,null,null,{"$f":"CEILING(C11*F11*H11,1)","v":0},null,{"$f":"IF(J11-K11<0,0,J11-K11)","v":0}]
["Total(es)",null,null,null,null,null,null,null,null,{"$f":"SUM(J9:J11)","v":0},{"$f":"SUM(K9:K11)","v":0},{"$f":"SUM(L9:L11)","v":0}]
["Descripción"]
[]
[]
["B. Beneficios adicionales"]
["Nombre",null,null,"Cálculo"]
["Enumere cada uno de los puestos financiados por la subvención que reciban beneficios adicionales.",null,null,"Mostrar la base de cálculo"]
[null,null,null,"Base",null,"Tasa",null,null,null,"Coste total","Contribución no federal","Solicitud federal"]
[]
[null,null,null,null,null,null,null,null,null,{"$f":"CEILING(D21*F21,1)","v":0},null,{"$f":"IF(J21-K21<0,0,J21-K21)","v":0}]
[null,null,null,null,null,null,null,null,null,{"$f":"CEILING(D22*F22,1)","v":0},null,{"$f":"IF(J22-K22<0,0,J22-K22)","v":0}]
[null,null,null,null,null,null,null,null,null,{"$f":"CEILING(D23*F23,1)","v":0},null,{"$f":"IF(J23-K23<0,0,J23-K23)","v":0}]
["Total(es)",null,null,null,null,null,null,null,null,{"$f":"SUM(J21:J23)","v":0},{"$f":"SUM(K21:K23)","v":0},{"$f":"SUM(L21:L23)","v":0}]
["Descripción"]
[]
[]
["C. Viajes"]
["Propósito del viaje","Ubicación",null,"Tipo de gasto","Base","Cálculo"]
["Indique el objetivo de cada viaje o tipo de viaje (formación, reunión del grupo consultivo)","Indique el destino del viaje.",null,"Alojamiento, comidas, etc.","Por día, milla, viaje, etc.","Calcula el coste de cada tipo de gasto X el número de personas que viajan."]
[null,null,null,null,null,"Costo","Cantidad","# de Personal","# Número de viajes","Coste total","Contribución no federal","Solicitud federal"]
[]
[null,null,null,null,{"$f":"IF((D33=\"Lodging\"),\"Night\",IF((D33=\"Meals\"),\"Day\",IF((D33=\"Mileage\"),\"Mile\",IF((D33=\"Transportation\"),\"Round-trip\",\"N/A\"))))","v":"N/A"},null,null,null,null,{"$f":"CEILING(F33*G33*H33*I33,1)","v":0},null,{"$f":"IF(J33-K33<0,0,J33-K33)","v":0}]
[null,null,null,null,{"$f":"IF((D34=\"Lodging\"),\"Night\",IF((D34=\"Meals\"),\"Day\",IF((D34=\"Mileage\"),\"Mile\",IF((D34=\"Transportation\"),\"Round-trip\",\"N/A\"))))","v":"N/A"},null,null,null,null,{"$f":"CEILING(F34*G34*H34*I34,1)","v":0},null,{"$f":"IF(J34-K34<0,0,J34-K34)","v":0}]
[null,null,null,null,{"$f":"IF((D35=\"Lodging\"),\"Night\",IF((D35=\"Meals\"),\"Day\",IF((D35=\"Mileage\"),\"Mile\",IF((D35=\"Transportation\"),\"Round-trip\",\"N/A\"))))","v":"N/A"},null,null,null,null,{"$f":"CEILING(F35*G35*H35*I35,1)","v":0},null,{"$f":"IF(J35-K35<0,0,J35-K35)","v":0}]
["Total(es)",null,null,null,null,null,null,null,null,{"$f":"SUM(J33:J35)","v":0},{"$f":"SUM(K33:K35)","v":0},{"$f":"SUM(L33:L35)","v":0}]
["Descripción"]
[]
[]
["D. Equipamiento"]
["Elemento",null,null,"Cálculo"]
["Enumere y describa cada uno de los equipos que se van a adquirir",null,null,"Calcular el coste (por ejemplo, el número de cada artículo que hay que comprar X el coste por artículo)"]
[null,null,null,"# Número de elementos",null,"Coste unitario",null,null,null,"Coste total","Contribución no federal","Solicitud federal"]
[]
[null,null,null,null,null,null,null,null,null,{"$f":"CEILING(D45*F45,1)","v":0},null,{"$f":"IF(J45-K45<0,0,J45-K45)","v":0}]
[null,null,null,null,null,null,null,null,null,{"$f":"CEILING(D46*F46,1)","v":0},null,{"$f":"IF(J46-K46<0,0,J46-K46)","v":0}]
[null,null,null,null,null,null,null,null,null,{"$f":"CEILING(D47*F47,1)","v":0},null,{"$f":"IF(J47-K47<0,0,J47-K47)","v":0}]
["Total(es)",null,null,null,null,null,null,null,null,{"$f":"SUM(J45:J47)","v":0},{"$f":"SUM(K45:K47)","v":0},{"$f":"SUM(L45:L47)","v":0}]
["Descripción"]
["Utilice las directrices del Tesoro del Estado de Nueva Jersey que definen el Equipo como un artículo individual que cueste 1.000 dólares o más.  Utilice la política de capitalización propia de la Agencia si el Equipo se define como un artículo individual que cueste menos de 1.000 dólares."]
[]
["E. Suministros"]
["Artículos de suministro",null,null,"Cálculo"]
["Proporcione una lista de los tipos de artículos que se comprarán con los fondos de la subvención.",null,null,"Describa el artículo y calcule los costes. Cálculo: el número de cada artículo que hay que comprar X el coste por artículo."]
[null,null,null,"# Número de elementos",null,"Coste unitario",null,null,null,"Coste total","Contribución no federal","Solicitud federal"]
[]
[null,null,null,null,null,null,null,null,null,{"$f":"CEILING(D57*F57,1)","v":0},null,{"$f":"IF(J57-K57<0,0,J57-K57)","v":0}]
[null,null,null,null,null,null,null,null,null,{"$f":"CEILING(D58*F58,1)","v":0},null,{"$f":"IF(J58-K58<0,0,J58-K58)","v":0}]
[null,null,null,null,null,null,null,null,null,{"$f":"CEILING(D59*F59,1)","v":0},null,{"$f":"IF(J59-K59<0,0,J59-K59)","v":0}]
["Total(es)",null,null,null,null,null,null,null,null,{"$f":"SUM(J57:J59)","v":0},{"$f":"SUM(K57:K59)","v":0},{"$f":"SUM(L57:L59)","v":0}]
["Descripción"]
["Utilice las directrices del Tesoro del Estado de Nueva Jersey que definen los suministros como un artículo individual que cuesta menos de 1.000 dólares.  Utilice la política propia de la agencia si los suministros se definen como un artículo que cuesta menos de 999 dólares.     "]
[]
["F. Construcción"]
["Objetivo","Descripción del trabajo",null,"Cálculo"]
["Indicar la finalidad de la construcción","Describa el o los proyectos de construcción",null,"Calcular el coste (por ejemplo, el número de cada artículo que hay que comprar X el coste por artículo)"]
[null,null,null,"# Número de elementos",null,"Costo",null,null,null,"Coste total","Contribución no federal","Solicitud federal"]
[]
[null,null,null,null,null,null,null,null,null,{"$f":"CEILING(D69*F69,1)","v":0},null,{"$f":"IF(J69-K69<0,0,J69-K69)","v":0}]
[null,null,null,null,null,null,null,null,null,{"$f":"CEILING(D70*F70,1)","v":0},null,{"$f":"IF(J70-K70<0,0,J70-K70)","v":0}]
[null,null,null,null,null,null,null,null,null,{"$f":"CEILING(D71*F71,1)","v":0},null,{"$f":"IF(J71-K71<0,0,J71-K71)","v":0}]
["Total(es)",null,null,null,null,null,null,null,null,{"$f":"SUM(J69:J71)","v":0},{"$f":"SUM(K69:K71)","v":0},{"$f":"SUM(L69:L71)","v":0}]
["Descripción"]
[]
[]
["G. Subconcesiones (subvenciones)"]
["Descripción",null,"Objetivo",null,null,null,null,"¿Asesor?"]
["Describa las actividades que llevarán a cabo los subreceptores.",null,"Describa la finalidad de la subconcesión (subvención)",null,null,null,null,"¿La subvención es para un consultor? En caso afirmativo, utilice la sección siguiente para explicar los gastos de viaje asociados incluidos en el coste."]
[null,null,null,null,null,null,null,null,null,"Coste total","Contribución no federal","Solicitud federal"]
[]
[null,null,null,null,null,null,null,null,null,null,null,{"$f":"IF(J81-K81<0,0,J81-K81)","v":0}]
[null,null,null,null,null,null,null,null,null,null,null,{"$f":"IF(J82-K82<0,0,J82-K82)","v":0}]
[null,null,null,null,null,null,null,null,null,null,null,{"$f":"IF(J83-K83<0,0,J83-K83)","v":0}]
["Total(es)",null,null,null,null,null,null,null,null,{"$f":"SUM(J81:J83)+J93","v":0},{"$f":"SUM(K81:K83)+K93","v":0},{"$f":"SUM(L81:L83)+L93","v":0}]
["Viajes de los asesores (de ser necesarios)"]
["Propósito del viaje","Ubicación",null,"Tipo de gasto",null,null,"Cálculo"]
["Indique el objetivo de cada viaje o tipo de viaje (formación, reunión del grupo consultivo)","Indique el destino del viaje.",null,"Hotel, pasajes aéreos, viáticos",null,null,"Calcula el coste de cada tipo de gasto X el número de personas que viajan."]
[null,null,null,null,null,null,"Costo","Duración o distancia","# de Personal","Coste total","Contribución no federal","Solicitud federal"]
[]
[null,null,null,null,null,null,null,null,null,{"$f":"CEILING(G90*H90*I90,1)","v":0},null,{"$f":"IF(J90-K90<0,0,J90-K90)","v":0}]
[null,null,null,null,null,null,null,null,null,{"$f":"CEILING(G91*H91*I91,1)","v":0},null,{"$f":"IF(J91-K91<0,0,J91-K91)","v":0}]
[null,null,null,null,null,null,null,null,null,{"$f":"CEILING(G92*H92*I92,1)","v":0},null,{"$f":"IF(J92-K92<0,0,J92-K92)","v":0}]
["Total",null,null,null,null,null,null,null,null,{"$f":"SUM(J90:J92)","v":0},{"$f":"SUM(K90:K92)","v":0},{"$f":"SUM(L90:L92)","v":0}]
["Descripción"]
[]
[]
["H. Contratos de adquisición"]
["Descripción",null,"Objetivo",null,null,null,null,"¿Asesor?"]
["Describa el producto o servicio que se va a adquirir por contrato y haga una estimación del coste.  Se anima a los solicitantes a promover la competencia libre y abierta en la adjudicación de contratos.  Se debe proporcionar una justificación separada para las adquisiciones de fuente única que superen el Umbral de Adquisición Simplificada (actualmente 150.000 dólares). ",null,"Describa el propósito del contrato",null,null,null,null,"¿La subvención es para un consultor? En caso afirmativo, utilice la sección siguiente para explicar los gastos de viaje asociados incluidos en el coste."]
[null,null,null,null,null,null,null,null,null,"Coste total","Contribución no federal","Solicitud federal"]
[]
[null,null,null,null,null,null,null,null,null,null,null,{"$f":"IF(J102-K102<0,0,J102-K102)","v":0}]
[null,null,null,null,null,null,null,null,null,null,null,{"$f":"IF(J103-K103<0,0,J103-K103)","v":0}]
[null,null,null,null,null,null,null,null,null,null,null,{"$f":"IF(J104-K104<0,0,J104-K104)","v":0}]
["Total(es)",null,null,null,null,null,null,null,null,{"$f":"SUM(J102:J104)+J114","v":0},{"$f":"SUM(K102:K104)+K114","v":0},{"$f":"SUM(L102:L104)+L114","v":0}]
["Viajes de los asesores (de ser necesarios)"]
["Propósito del viaje","Ubicación",null,"Tipo de gasto",null,null,"Cálculo"]
["Indique el objetivo de cada viaje o tipo de viaje (formación, reunión del grupo consultivo)","Indique el destino del viaje.",null,"Hotel, pasajes aéreos, viáticos",null,null,"Calcula el coste de cada tipo de gasto X el número de personas que viajan."]
[null,null,null,null,null,null,"Costo","Duración o distancia","# de Personal","Coste total","Contribución no federal","Solicitud federal"]
[]
[null,null,null,null,null,null,null,null,null,{"$f":"CEILING(G111*H111*I111,1)","v":0},null,{"$f":"IF(J111-K111<0,0,J111-K111)","v":0}]
[null,null,null,null,null,null,null,null,null,{"$f":"CEILING(G112*H112*I112,1)","v":0},null,{"$f":"IF(J112-K112<0,0,J112-K112)","v":0}]
[null,null,null,null,null,null,null,null,null,{"$f":"CEILING(G113*H113*I113,1)","v":0},null,{"$f":"IF(J113-K113<0,0,J113-K113)","v":0}]
["Total",null,null,null,null,null,null,null,null,{"$f":"SUM(J111:J113)","v":0},{"$f":"SUM(K111:K113)","v":0},{"$f":"SUM(L111:L113)","v":0}]
["Descripción"]
[]
[]
["I. Otros costes"]
["Descripción ",null,"Cálculo"]
["Enumere y describa los elementos que se pagarán con los fondos de las subvenciones (por ejemplo, alquiler, copias, teléfono, conserjería o servicios de seguridad, y fondos de investigación o confidenciales).",null,"Mostrar la base de cálculo"]
[null,null,"Cantidad",null,"Base","Costo",null,"Duración",null,"Coste total","Contribución no federal","Solicitud federal"]
[]
[null,null,null,null,null,null,null,null,null,{"$f":"CEILING(C123*F123*H123,1)","v":0},null,{"$f":"IF(J123-K123<0,0,J123-K123)","v":0}]
[null,null,null,null,null,null,null,null,null,{"$f":"CEILING(C124*F124*H124,1)","v":0},null,{"$f":"IF(J124-K124<0,0,J124-K124)","v":0}]
[null,null,null,null,null,null,null,null,null,{"$f":"CEILING(C125*F125*H125,1)","v":0},null,{"$f":"IF(J125-K125<0,0,J125-K125)","v":0}]
["Total(es)",null,null,null,null,null,null,null,null,{"$f":"SUM(J123:J125)","v":0},{"$f":"SUM(K123:K125)","v":0},{"$f":"SUM(L123:L125)","v":0}]
["Descripción"]
[]
[]
["J. Costos indirectos"]
["Descripción",null,null,"Cálculo"]
["Describa cuál es la tasa aprobada y cómo se aplica.",null,null,"Calcule los costes indirectos para las partes del programa que permiten tales costes."]
[null,null,null,"Base",null,"Tasa de costos indirectos",null,null,null,"Coste total","Contribución no federal","Solicitud federal"]
[]
[null,null,null,null,null,null,null,null,null,{"$f":"CEILING(D135*F135,1)","v":0},null,{"$f":"IF(J135-K135<0,0,J135-K135)","v":0}]
[null,null,null,null,null,null,null,null,null,{"$f":"CEILING(D136*F136,1)","v":0},null,{"$f":"IF(J136-K136<0,0,J136-K136)","v":0}]
[null,null,null,null,null,null,null,null,null,{"$f":"CEILING(D137*F137,1)","v":0},null,{"$f":"IF(J137-K137<0,0,J137-K137)","v":0}]
["Total(es)",null,null,null,null,null,null,null,null,{"$f":"SUM(J135:J137)","v":0},{"$f":"SUM(K135:K137)","v":0},{"$f":"SUM(L135:L137)","v":0}]
["Descripción"]

{"sheet":"Detalle del presupuesto Año 4","index":5,"n_rows":139,"n_cols":12,"rows_kept":139,"cut":false,"hidden":false,"merged":[[0,0,0,5],[0,7,0,11],[1,0,1,9],[1,10,2,11],[2,0,2,1],[4,2,4,11],[8,2,8,3],[8,5,8,6],[8,7,8,8],[9,2,9,3],[9,5,9,6],[9,7,9,8],[5,2,5,11],[6,0,7,1],[6,2,7,3],[6,4,7,4],[6,5,7,6],[6,7,7,8],[6,9,7,9],[6,10,7,10],[6,11,7,11],[17,0,17,2],[17,3,17,11],[18,0,19,2],[18,3,19,4],[18,5,19,8],[18,9,19,9],[18,10,19,10],[18,11,19,11],[10,2,10,3],[10,5,10,6],[10,7,10,8],[11,0,11,8],[13,0,14,11],[16,0,16,2],[16,3,16,11],[22,0,22,2],[22,3,22,4],[22,5,22,8],[23,0,23,8],[25,0,26,11],[28,1,28,2],[28,5,28,11],[20,0,20,2],[20,3,20,4],[20,5,20,8],[21,0,21,2],[21,3,21,4],[21,5,21,8],[29,1,29,2],[29,5,29,11],[30,0,31,4],[30,5,31,5],[30,6,31,6],[30,7,31,7],[30,8,31,8],[30,9,31,9],[30,10,31,10],[30,11,31,11],[41,0,41,2],[41,3,41,11],[42,0,43,2],[42,3,43,4],[42,5,43,8],[42,9,43,9],[42,10,43,10],[42,11,43,11],[32,1,32,2],[33,1,33,2],[34,1,34,2],[35,0,35,8],[37,0,38,11],[40,0,40,2],[40,3,40,11],[46,0,46,2],[46,3,46,4],[46,5,46,8],[47,0,47,8],[49,0,50,11],[52,0,52,2],[52,3,52,11],[44,0,44,2],[44,3,44,4],[44,5,44,8],[45,0,45,2],[45,3,45,4],[45,5,45,8],[56,0,56,2],[56,3,56,4],[56,5,56,8],[57,0,57,2],[57,3,57,4],[57,5,57,8],[53,0,53,2],[53,3,53,11],[54,0,55,2],[54,3,55,4],[54,5,55,8],[54,9,55,9],[54,10,55,10],[54,11,55,11],[65,1,65,2],[65,3,65,11],[66,0,67,2],[66,3,67,4],[66,5,67,8],[66,9,67,9],[66,10,67,10],[66,11,67,11],[58,0,58,2],[58,3,58,4],[58,5,58,8],[59,0,59,8],[61,0,62,11],[64,1,64,2],[64,3,64,11],[70,1,70,2],[70,3,70,4],[70,5,70,8],[71,0,71,8],[73,0,74,11],[75,0,75,1],[68,1,68,2],[68,3,68,4],[68,5,68,8],[69,1,69,2],[69,3,69,4],[69,5,69,8],[78,9,79,9],[78,10,79,10],[78,11,79,11],[80,0,80,1],[80,2,80,6],[80,7,80,8],[76,0,76,1],[76,2,76,6],[76,7,76,8],[76,9,77,11],[77,0,77,1],[77,2,77,6],[77,7,77,8],[83,0,83,8],[84,0,84,1],[85,1,85,2],[85,3,85,5],[85,6,85,11],[86,1,86,2],[86,3,86,5],[86,6,86,11],[81,0,81,1],[81,2,81,6],[81,7,81,8],[82,0,82,1],[82,2,82,6],[82,7,82,8],[87,11,88,11],[89,1,89,2],[89,3,89,5],[90,1,90,2],[90,3,90,5],[91,1,91,2],[91,3,91,5],[87,0,88,5],[87,6,88,6],[87,7,88,7],[87,8,88,8],[87,9,88,9],[87,10,88,10],[98,0,98,1],[98,2,98,6],[98,7,98,8],[99,0,100,1],[99,9,100,9],[99,10,100,10],[92,0,92,8],[94,0,95,11],[96,0,96,1],[97,0,97,1],[97,2,97,6],[97,7,97,8],[103,0,103,1],[103,2,103,6],[103,7,103,8],[104,0,104,8],[105,0,105,1],[106,1,106,2],[106,3,106,5],[106,6,106,11],[99,11,100,11],[101,0,101,1],[101,2,101,6],[101,7,101,8],[102,0,102,1],[102,2,102,6],[102,7,102,8],[107,1,107,2],[107,3,107,5],[107,6,107,11],[108,0,109,5],[108,6,109,6],[108,7,109,7],[108,8,109,8],[108,9,109,9],[108,10,109,10],[108,11,109,11],[113,0,113,8],[115,0,116,11],[118,0,118,1],[118,2,118,11],[119,0,119,1],[119,2,119,11],[110,1,110,2],[110,3,110,5],[111,1,111,2],[111,3,111,5],[112,1,112,2],[112,3,112,5],[124,0,124,1],[124,2,124,3],[124,5,124,6],[124,7,124,8],[125,0,125,8],[127,0,128,11],[120,11,121,11],[122,0,122,1],[122,2,122,3],[122,5,122,6],[122,7,122,8],[123,0,123,1],[123,2,123,3],[123,5,123,6],[123,7,123,8],[120,2,121,3],[120,4,121,4],[120,5,121,6],[120,7,121,8],[120,9,121,9],[120,10,121,10],[130,0,130,2],[130,3,130,11],[131,0,131,2],[131,3,131,11],[132,0,133,2],[132,3,133,4],[132,5,133,8],[132,9,133,9],[132,10,133,10],[132,11,133,11],[136,0,136,2],[136,3,136,4],[136,5,136,8],[137,0,137,8],[139,0,140,11],[134,0,134,2],[134,3,134,4],[134,5,134,8],[135,0,135,2],[135,3,135,4],[135,5,135,8]]}
[{"$f":"'Instrucciones para la hoja de p'!A20","v":"Detalle del presupuesto Año 4"}]
["¿Incluye este presupuesto los costes de conferencias, que se definen de forma amplia para incluir reuniones, retiros, seminarios, simposios y actividades de formación? S/N"]
["(Guía financiera del DOJ, sección 3.10)"]
["A. Personal"]
["Nombre","Cargo","Cálculo"]
["Mencione cada nombre, en caso de que lo conozca.","Mencione cada Cargo, en caso de que lo conozca.","Indique la tasa de salario anual y la cantidad de tiempo dedicado al proyecto para cada nombre/puesto."]
[null,null,"Salario ",null,"Tasa","Tiempo trabajado\n(número de horas, días, meses, años) ",null,"Porcentaje de tiempo",null,"Coste total","Contribución no federal","Solicitud federal"]
[]
[null,null,null,null,null,null,null,null,null,{"$f":"CEILING(C9*F9*H9,1)","v":0},null,{"$f":"IF(J9-K9<0,0,J9-K9)","v":0}]
[null,null,null,null,null,null,null,null,null,{"$f":"CEILING(C10*F10*H10,1)","v":0},null,{"$f":"IF(J10-K10<0,0,J10-K10)","v":0}]
[null,null,null,null,null,null,null,null,null,{"$f":"CEILING(C11*F11*H11,1)","v":0},null,{"$f":"IF(J11-K11<0,0,J11-K11)","v":0}]
["Total(es)",null,null,null,null,null,null,null,null,{"$f":"SUM(J9:J11)","v":0},{"$f":"SUM(K9:K11)","v":0},{"$f":"SUM(L9:L11)","v":0}]
["Descripción"]
[]
[]
["B. Beneficios adicionales"]
["Nombre",null,null,"Cálculo"]
["Enumere cada uno de los puestos financiados por la subvención que reciban beneficios adicionales.",null,null,"Mostrar la base de cálculo"]
[null,null,null,"Base",null,"Tasa",null,null,null,"Coste total","Contribución no federal","Solicitud federal"]
[]
[null,null,null,null,null,null,null,null,null,{"$f":"CEILING(D21*F21,1)","v":0},null,{"$f":"IF(J21-K21<0,0,J21-K21)","v":0}]
[null,null,null,null,null,null,null,null,null,{"$f":"CEILING(D22*F22,1)","v":0},null,{"$f":"IF(J22-K22<0,0,J22-K22)","v":0}]
[null,null,null,null,null,null,null,null,null,{"$f":"CEILING(D23*F23,1)","v":0},null,{"$f":"IF(J23-K23<0,0,J23-K23)","v":0}]
["Total(es)",null,null,null,null,null,null,null,null,{"$f":"SUM(J21:J23)","v":0},{"$f":"SUM(K21:K23)","v":0},{"$f":"SUM(L21:L23)","v":0}]
["Descripción"]
[]
[]
["C. Viajes"]
["Propósito del viaje","Ubicación",null,"Tipo de gasto","Base","Cálculo"]
["Indique el objetivo de cada viaje o tipo de viaje (formación, reunión del grupo consultivo)","Indique el destino del viaje.",null,"Alojamiento, comidas, etc.","Por día, milla, viaje, etc.","Calcula el coste de cada tipo de gasto X el número de personas que viajan."]
[null,null,null,null,null,"Costo","Cantidad","# de Personal","# Número de viajes","Coste total","Contribución no federal","Solicitud federal"]
[]
[null,null,null,null,{"$f":"IF((D33=\"Lodging\"),\"Night\",IF((D33=\"Meals\"),\"Day\",IF((D33=\"Mileage\"),\"Mile\",IF((D33=\"Transportation\"),\"Round-trip\",\"N/A\"))))","v":"N/A"},null,null,null,null,{"$f":"CEILING(F33*G33*H33*I33,1)","v":0},null,{"$f":"IF(J33-K33<0,0,J33-K33)","v":0}]
[null,null,null,null,{"$f":"IF((D34=\"Lodging\"),\"Night\",IF((D34=\"Meals\"),\"Day\",IF((D34=\"Mileage\"),\"Mile\",IF((D34=\"Transportation\"),\"Round-trip\",\"N/A\"))))","v":"N/A"},null,null,null,null,{"$f":"CEILING(F34*G34*H34*I34,1)","v":0},null,{"$f":"IF(J34-K34<0,0,J34-K34)","v":0}]
[null,null,null,null,{"$f":"IF((D35=\"Lodging\"),\"Night\",IF((D35=\"Meals\"),\"Day\",IF((D35=\"Mileage\"),\"Mile\",IF((D35=\"Transportation\"),\"Round-trip\",\"N/A\"))))","v":"N/A"},null,null,null,null,{"$f":"CEILING(F35*G35*H35*I35,1)","v":0},null,{"$f":"IF(J35-K35<0,0,J35-K35)","v":0}]
["Total(es)",null,null,null,null,null,null,null,null,{"$f":"SUM(J33:J35)","v":0},{"$f":"SUM(K33:K35)","v":0},{"$f":"SUM(L33:L35)","v":0}]
["Descripción"]
[]
[]
["D. Equipamiento"]
["Elemento",null,null,"Cálculo"]
["Enumere y describa cada uno de los equipos que se van a adquirir",null,null,"Calcular el coste (por ejemplo, el número de cada artículo que hay que comprar X el coste por artículo)"]
[null,null,null,"# Número de elementos",null,"Coste unitario",null,null,null,"Coste total","Contribución no federal","Solicitud federal"]
[]
[null,null,null,null,null,null,null,null,null,{"$f":"CEILING(D45*F45,1)","v":0},null,{"$f":"IF(J45-K45<0,0,J45-K45)","v":0}]
[null,null,null,null,null,null,null,null,null,{"$f":"CEILING(D46*F46,1)","v":0},null,{"$f":"IF(J46-K46<0,0,J46-K46)","v":0}]
[null,null,null,null,null,null,null,null,null,{"$f":"CEILING(D47*F47,1)","v":0},null,{"$f":"IF(J47-K47<0,0,J47-K47)","v":0}]
["Total(es)",null,null,null,null,null,null,null,null,{"$f":"SUM(J45:J47)","v":0},{"$f":"SUM(K45:K47)","v":0},{"$f":"SUM(L45:L47)","v":0}]
["Descripción"]
["Utilice las directrices del Tesoro del Estado de Nueva Jersey que definen el Equipo como un artículo individual que cueste 1.000 dólares o más.  Utilice la política de capitalización propia de la Agencia si el Equipo se define como un artículo individual que cueste menos de 1.000 dólares."]
[]
["E. Suministros"]
["Artículos de suministro",null,null,"Cálculo"]
["Proporcione una lista de los tipos de artículos que se comprarán con los fondos de la subvención.",null,null,"Describa el artículo y calcule los costes. Cálculo: el número de cada artículo que hay que comprar X el coste por artículo."]
[null,null,null,"# Número de elementos",null,"Coste unitario",null,null,null,"Coste total","Contribución no federal","Solicitud federal"]
[]
[null,null,null,null,null,null,null,null,null,{"$f":"CEILING(D57*F57,1)","v":0},null,{"$f":"IF(J57-K57<0,0,J57-K57)","v":0}]
[null,null,null,null,null,null,null,null,null,{"$f":"CEILING(D58*F58,1)","v":0},null,{"$f":"IF(J58-K58<0,0,J58-K58)","v":0}]
[null,null,null,null,null,null,null,null,null,{"$f":"CEILING(D59*F59,1)","v":0},null,{"$f":"IF(J59-K59<0,0,J59-K59)","v":0}]
["Total(es)",null,null,null,null,null,null,null,null,{"$f":"SUM(J57:J59)","v":0},{"$f":"SUM(K57:K59)","v":0},{"$f":"SUM(L57:L59)","v":0}]
["Descripción"]
["Utilice las directrices del Tesoro del Estado de Nueva Jersey que definen los suministros como un artículo individual que cuesta menos de 1.000 dólares.  Utilice la política propia de la agencia si los suministros se definen como un artículo que cuesta menos de 999 dólares.     "]
[]
["F. Construcción"]
["Objetivo","Descripción del trabajo",null,"Cálculo"]
["Indicar la finalidad de la construcción","Describa el o los proyectos de construcción",null,"Calcular el coste (por ejemplo, el número de cada artículo que hay que comprar X el coste por artículo)"]
[null,null,null,"# Número de elementos",null,"Costo",null,null,null,"Coste total","Contribución no federal","Solicitud federal"]
[]
[null,null,null,null,null,null,null,null,null,{"$f":"CEILING(D69*F69,1)","v":0},null,{"$f":"IF(J69-K69<0,0,J69-K69)","v":0}]
[null,null,null,null,null,null,null,null,null,{"$f":"CEILING(D70*F70,1)","v":0},null,{"$f":"IF(J70-K70<0,0,J70-K70)","v":0}]
[null,null,null,null,null,null,null,null,null,{"$f":"CEILING(D71*F71,1)","v":0},null,{"$f":"IF(J71-K71<0,0,J71-K71)","v":0}]
["Total(es)",null,null,null,null,null,null,null,null,{"$f":"SUM(J69:J71)","v":0},{"$f":"SUM(K69:K71)","v":0},{"$f":"SUM(L69:L71)","v":0}]
["Descripción"]
[]
[]
["G. Subconcesiones (subvenciones)"]
["Descripción",null,"Objetivo",null,null,null,null,"¿Asesor?"]
["Describa las actividades que llevarán a cabo los subreceptores.",null,"Describa la finalidad de la subconcesión (subvención)",null,null,null,null,"¿La subvención es para un consultor? En caso afirmativo, utilice la sección siguiente para explicar los gastos de viaje asociados incluidos en el coste."]
[null,null,null,null,null,null,null,null,null,"Coste total","Contribución no federal","Solicitud federal"]
[]
[null,null,null,null,null,null,null,null,null,null,null,{"$f":"IF(J81-K81<0,0,J81-K81)","v":0}]
[null,null,null,null,null,null,null,null,null,null,null,{"$f":"IF(J82-K82<0,0,J82-K82)","v":0}]
[null,null,null,null,null,null,null,null,null,null,null,{"$f":"IF(J83-K83<0,0,J83-K83)","v":0}]
["Total(es)",null,null,null,null,null,null,null,null,{"$f":"SUM(J81:J83)+J93","v":0},{"$f":"SUM(K81:K83)+K93","v":0},{"$f":"SUM(L81:L83)+L93","v":0}]
["Viajes de los asesores (de ser necesarios)"]
["Propósito del viaje","Ubicación",null,"Tipo de gasto",null,null,"Cálculo"]
["Indique el objetivo de cada viaje o tipo de viaje (formación, reunión del grupo consultivo)","Indique el destino del viaje.",null,"Hotel, pasajes aéreos, viáticos",null,null,"Calcula el coste de cada tipo de gasto X el número de personas que viajan."]
[null,null,null,null,null,null,"Costo","Duración o distancia","# de Personal","Coste total","Contribución no federal","Solicitud federal"]
[]
[null,null,null,null,null,null,null,null,null,{"$f":"CEILING(G90*H90*I90,1)","v":0},null,{"$f":"IF(J90-K90<0,0,J90-K90)","v":0}]
[null,null,null,null,null,null,null,null,null,{"$f":"CEILING(G91*H91*I91,1)","v":0},null,{"$f":"IF(J91-K91<0,0,J91-K91)","v":0}]
[null,null,null,null,null,null,null,null,null,{"$f":"CEILING(G92*H92*I92,1)","v":0},null,{"$f":"IF(J92-K92<0,0,J92-K92)","v":0}]
["Total",null,null,null,null,null,null,null,null,{"$f":"SUM(J90:J92)","v":0},{"$f":"SUM(K90:K92)","v":0},{"$f":"SUM(L90:L92)","v":0}]
["Descripción"]
[]
[]
["H. Contratos de adquisición"]
["Descripción",null,"Objetivo",null,null,null,null,"¿Asesor?"]
["Describa el producto o servicio que se va a adquirir por contrato y haga una estimación del coste.  Se anima a los solicitantes a promover la competencia libre y abierta en la adjudicación de contratos.  Se debe proporcionar una justificación separada para las adquisiciones de fuente única que superen el Umbral de Adquisición Simplificada (actualmente 150.000 dólares). ",null,"Describa el propósito del contrato",null,null,null,null,"¿La subvención es para un consultor? En caso afirmativo, utilice la sección siguiente para explicar los gastos de viaje asociados incluidos en el coste."]
[null,null,null,null,null,null,null,null,null,"Coste total","Contribución no federal","Solicitud federal"]
[]
[null,null,null,null,null,null,null,null,null,null,null,{"$f":"IF(J102-K102<0,0,J102-K102)","v":0}]
[null,null,null,null,null,null,null,null,null,null,null,{"$f":"IF(J103-K103<0,0,J103-K103)","v":0}]
[null,null,null,null,null,null,null,null,null,null,null,{"$f":"IF(J104-K104<0,0,J104-K104)","v":0}]
["Total(es)",null,null,null,null,null,null,null,null,{"$f":"SUM(J102:J104)+J114","v":0},{"$f":"SUM(K102:K104)+K114","v":0},{"$f":"SUM(L102:L104)+L114","v":0}]
["Viajes de los asesores (de ser necesarios)"]
["Propósito del viaje","Ubicación",null,"Tipo de gasto",null,null,"Cálculo"]
["Indique el objetivo de cada viaje o tipo de viaje (formación, reunión del grupo consultivo)","Indique el destino del viaje.",null,"Hotel, pasajes aéreos, viáticos",null,null,"Calcula el coste de cada tipo de gasto X el número de personas que viajan."]
[null,null,null,null,null,null,"Costo","Duración o distancia","# de Personal","Coste total","Contribución no federal","Solicitud federal"]
[]
[null,null,null,null,null,null,null,null,null,{"$f":"CEILING(G111*H111*I111,1)","v":0},null,{"$f":"IF(J111-K111<0,0,J111-K111)","v":0}]
[null,null,null,null,null,null,null,null,null,{"$f":"CEILING(G112*H112*I112,1)","v":0},null,{"$f":"IF(J112-K112<0,0,J112-K112)","v":0}]
[null,null,null,null,null,null,null,null,null,{"$f":"CEILING(G113*H113*I113,1)","v":0},null,{"$f":"IF(J113-K113<0,0,J113-K113)","v":0}]
["Total",null,null,null,null,null,null,null,null,{"$f":"SUM(J111:J113)","v":0},{"$f":"SUM(K111:K113)","v":0},{"$f":"SUM(L111:L113)","v":0}]
["Descripción"]
[]
[]
["I. Otros costes"]
["Descripción ",null,"Cálculo"]
["Enumere y describa los elementos que se pagarán con los fondos de las subvenciones (por ejemplo, alquiler, copias, teléfono, conserjería o servicios de seguridad, y fondos de investigación o confidenciales).",null,"Mostrar la base de cálculo"]
[null,null,"Cantidad",null,"Base","Costo",null,"Duración",null,"Coste total","Contribución no federal","Solicitud federal"]
[]
[null,null,null,null,null,null,null,null,null,{"$f":"CEILING(C123*F123*H123,1)","v":0},null,{"$f":"IF(J123-K123<0,0,J123-K123)","v":0}]
[null,null,null,null,null,null,null,null,null,{"$f":"CEILING(C124*F124*H124,1)","v":0},null,{"$f":"IF(J124-K124<0,0,J124-K124)","v":0}]
[null,null,null,null,null,null,null,null,null,{"$f":"CEILING(C125*F125*H125,1)","v":0},null,{"$f":"IF(J125-K125<0,0,J125-K125)","v":0}]
["Total(es)",null,null,null,null,null,null,null,null,{"$f":"SUM(J123:J125)","v":0},{"$f":"SUM(K123:K125)","v":0},{"$f":"SUM(L123:L125)","v":0}]
["Descripción"]
[]
[]
["J. Costos indirectos"]
["Descripción",null,null,"Cálculo"]
["Describa cuál es la tasa aprobada y cómo se aplica.",null,null,"Calcule los costes indirectos para las partes del programa que permiten tales costes."]
[null,null,null,"Base",null,"Tasa de costos indirectos",null,null,null,"Coste total","Contribución no federal","Solicitud federal"]
[]
[null,null,null,null,null,null,null,null,null,{"$f":"CEILING(D135*F135,1)","v":0},null,{"$f":"IF(J135-K135<0,0,J135-K135)","v":0}]
[null,null,null,null,null,null,null,null,null,{"$f":"CEILING(D136*F136,1)","v":0},null,{"$f":"IF(J136-K136<0,0,J136-K136)","v":0}]
[null,null,null,null,null,null,null,null,null,{"$f":"CEILING(D137*F137,1)","v":0},null,{"$f":"IF(J137-K137<0,0,J137-K137)","v":0}]
["Total(es)",null,null,null,null,null,null,null,null,{"$f":"SUM(J135:J137)","v":0},{"$f":"SUM(K135:K137)","v":0},{"$f":"SUM(L135:L137)","v":0}]
["Descripción"]

{"sheet":"Detalle del presupuesto Año 5","index":6,"n_rows":139,"n_cols":12,"rows_kept":139,"cut":false,"hidden":false,"merged":[[0,0,0,5],[0,7,0,11],[1,0,1,9],[1,10,2,11],[2,0,2,1],[4,2,4,11],[8,2,8,3],[8,5,8,6],[8,7,8,8],[9,2,9,3],[9,5,9,6],[9,7,9,8],[5,2,5,11],[6,0,7,1],[6,2,7,3],[6,4,7,4],[6,5,7,6],[6,7,7,8],[6,9,7,9],[6,10,7,10],[6,11,7,11],[17,0,17,2],[17,3,17,11],[18,0,19,2],[18,3,19,4],[18,5,19,8],[18,9,19,9],[18,10,19,10],[18,11,19,11],[10,2,10,3],[10,5,10,6],[10,7,10,8],[11,0,11,8],[13,0,14,11],[16,0,16,2],[16,3,16,11],[22,0,22,2],[22,3,22,4],[22,5,22,8],[23,0,23,8],[25,0,26,11],[28,1,28,2],[28,5,28,11],[20,0,20,2],[20,3,20,4],[20,5,20,8],[21,0,21,2],[21,3,21,4],[21,5,21,8],[29,1,29,2],[29,5,29,11],[30,0,31,4],[30,5,31,5],[30,6,31,6],[30,7,31,7],[30,8,31,8],[30,9,31,9],[30,10,31,10],[30,11,31,11],[41,0,41,2],[41,3,41,11],[42,0,43,2],[42,3,43,4],[42,5,43,8],[42,9,43,9],[42,10,43,10],[42,11,43,11],[32,1,32,2],[33,1,33,2],[34,1,34,2],[35,0,35,8],[37,0,38,11],[40,0,40,2],[40,3,40,11],[46,0,46,2],[46,3,46,4],[46,5,46,8],[47,0,47,8],[49,0,50,11],[52,0,52,2],[52,3,52,11],[44,0,44,2],[44,3,44,4],[44,5,44,8],[45,0,45,2],[45,3,45,4],[45,5,45,8],[56,0,56,2],[56,3,56,4],[56,5,56,8],[57,0,57,2],[57,3,57,4],[57,5,57,8],[53,0,53,2],[53,3,53,11],[54,0,55,2],[54,3,55,4],[54,5,55,8],[54,9,55,9],[54,10,55,10],[54,11,55,11],[65,1,65,2],[65,3,65,11],[66,0,67,2],[66,3,67,4],[66,5,67,8],[66,9,67,9],[66,10,67,10],[66,11,67,11],[58,0,58,2],[58,3,58,4],[58,5,58,8],[59,0,59,8],[61,0,62,11],[64,1,64,2],[64,3,64,11],[70,1,70,2],[70,3,70,4],[70,5,70,8],[71,0,71,8],[73,0,74,11],[75,0,75,1],[68,1,68,2],[68,3,68,4],[68,5,68,8],[69,1,69,2],[69,3,69,4],[69,5,69,8],[78,9,79,9],[78,10,79,10],[78,11,79,11],[80,0,80,1],[80,2,80,6],[80,7,80,8],[76,0,76,1],[76,2,76,6],[76,7,76,8],[76,9,77,11],[77,0,77,1],[77,2,77,6],[77,7,77,8],[83,0,83,8],[84,0,84,1],[85,1,85,2],[85,3,85,5],[85,6,85,11],[86,1,86,2],[86,3,86,5],[86,6,86,11],[81,0,81,1],[81,2,81,6],[81,7,81,8],[82,0,82,1],[82,2,82,6],[82,7,82,8],[87,11,88,11],[89,1,89,2],[89,3,89,5],[90,1,90,2],[90,3,90,5],[91,1,91,2],[91,3,91,5],[87,0,88,5],[87,6,88,6],[87,7,88,7],[87,8,88,8],[87,9,88,9],[87,10,88,10],[98,0,98,1],[98,2,98,6],[98,7,98,8],[99,0,100,1],[99,9,100,9],[99,10,100,10],[92,0,92,8],[94,0,95,11],[96,0,96,1],[97,0,97,1],[97,2,97,6],[97,7,97,8],[103,0,103,1],[103,2,103,6],[103,7,103,8],[104,0,104,8],[105,0,105,1],[106,1,106,2],[106,3,106,5],[106,6,106,11],[99,11,100,11],[101,0,101,1],[101,2,101,6],[101,7,101,8],[102,0,102,1],[102,2,102,6],[102,7,102,8],[107,1,107,2],[107,3,107,5],[107,6,107,11],[108,0,109,5],[108,6,109,6],[108,7,109,7],[108,8,109,8],[108,9,109,9],[108,10,109,10],[108,11,109,11],[113,0,113,8],[115,0,116,11],[118,0,118,1],[118,2,118,11],[119,0,119,1],[119,2,119,11],[110,1,110,2],[110,3,110,5],[111,1,111,2],[111,3,111,5],[112,1,112,2],[112,3,112,5],[124,0,124,1],[124,2,124,3],[124,5,124,6],[124,7,124,8],[125,0,125,8],[127,0,128,11],[120,11,121,11],[122,0,122,1],[122,2,122,3],[122,5,122,6],[122,7,122,8],[123,0,123,1],[123,2,123,3],[123,5,123,6],[123,7,123,8],[120,2,121,3],[120,4,121,4],[120,5,121,6],[120,7,121,8],[120,9,121,9],[120,10,121,10],[130,0,130,2],[130,3,130,11],[131,0,131,2],[131,3,131,11],[132,0,133,2],[132,3,133,4],[132,5,133,8],[132,9,133,9],[132,10,133,10],[132,11,133,11],[136,0,136,2],[136,3,136,4],[136,5,136,8],[137,0,137,8],[139,0,140,11],[134,0,134,2],[134,3,134,4],[134,5,134,8],[135,0,135,2],[135,3,135,4],[135,5,135,8]]}
[{"$f":"'Instrucciones para la hoja de p'!A21","v":"Detalle del presupuesto Año 5"}]
["¿Incluye este presupuesto los costes de conferencias, que se definen de forma amplia para incluir reuniones, retiros, seminarios, simposios y actividades de formación? S/N"]
["(Guía financiera del DOJ, sección 3.10)"]
["A. Personal"]
["Nombre","Cargo","Cálculo"]
["Mencione cada nombre, en caso de que lo conozca.","Mencione cada Cargo, en caso de que lo conozca.","Indique la tasa de salario anual y la cantidad de tiempo dedicado al proyecto para cada nombre/puesto."]
[null,null,"Salario ",null,"Tasa","Tiempo trabajado\n(número de horas, días, meses, años) ",null,"Porcentaje de tiempo",null,"Coste total","Contribución no federal","Solicitud federal"]
[]
[null,null,null,null,null,null,null,null,null,{"$f":"CEILING(C9*F9*H9,1)","v":0},null,{"$f":"IF(J9-K9<0,0,J9-K9)","v":0}]
[null,null,null,null,null,null,null,null,null,{"$f":"CEILING(C10*F10*H10,1)","v":0},null,{"$f":"IF(J10-K10<0,0,J10-K10)","v":0}]
[null,null,null,null,null,null,null,null,null,{"$f":"CEILING(C11*F11*H11,1)","v":0},null,{"$f":"IF(J11-K11<0,0,J11-K11)","v":0}]
["Total(es)",null,null,null,null,null,null,null,null,{"$f":"SUM(J9:J11)","v":0},{"$f":"SUM(K9:K11)","v":0},{"$f":"SUM(L9:L11)","v":0}]
["Descripción"]
[]
[]
["B. Beneficios adicionales"]
["Nombre",null,null,"Cálculo"]
["Enumere cada uno de los puestos financiados por la subvención que reciban beneficios adicionales.",null,null,"Mostrar la base de cálculo"]
[null,null,null,"Base",null,"Tasa",null,null,null,"Coste total","Contribución no federal","Solicitud federal"]
[]
[null,null,null,null,null,null,null,null,null,{"$f":"CEILING(D21*F21,1)","v":0},null,{"$f":"IF(J21-K21<0,0,J21-K21)","v":0}]
[null,null,null,null,null,null,null,null,null,{"$f":"CEILING(D22*F22,1)","v":0},null,{"$f":"IF(J22-K22<0,0,J22-K22)","v":0}]
[null,null,null,null,null,null,null,null,null,{"$f":"CEILING(D23*F23,1)","v":0},null,{"$f":"IF(J23-K23<0,0,J23-K23)","v":0}]
["Total(es)",null,null,null,null,null,null,null,null,{"$f":"SUM(J21:J23)","v":0},{"$f":"SUM(K21:K23)","v":0},{"$f":"SUM(L21:L23)","v":0}]
["Descripción"]
[]
[]
["C. Viajes"]
["Propósito del viaje","Ubicación",null,"Tipo de gasto","Base","Cálculo"]
["Indique el objetivo de cada viaje o tipo de viaje (formación, reunión del grupo consultivo)","Indique el destino del viaje.",null,"Alojamiento, comidas, etc.","Por día, milla, viaje, etc.","Calcula el coste de cada tipo de gasto X el número de personas que viajan."]
[null,null,null,null,null,"Costo","Cantidad","# de Personal","# Número de viajes","Coste total","Contribución no federal","Solicitud federal"]
[]
[null,null,null,null,{"$f":"IF((D33=\"Lodging\"),\"Night\",IF((D33=\"Meals\"),\"Day\",IF((D33=\"Mileage\"),\"Mile\",IF((D33=\"Transportation\"),\"Round-trip\",\"N/A\"))))","v":"N/A"},null,null,null,null,{"$f":"CEILING(F33*G33*H33*I33,1)","v":0},null,{"$f":"IF(J33-K33<0,0,J33-K33)","v":0}]
[null,null,null,null,{"$f":"IF((D34=\"Lodging\"),\"Night\",IF((D34=\"Meals\"),\"Day\",IF((D34=\"Mileage\"),\"Mile\",IF((D34=\"Transportation\"),\"Round-trip\",\"N/A\"))))","v":"N/A"},null,null,null,null,{"$f":"CEILING(F34*G34*H34*I34,1)","v":0},null,{"$f":"IF(J34-K34<0,0,J34-K34)","v":0}]
[null,null,null,null,{"$f":"IF((D35=\"Lodging\"),\"Night\",IF((D35=\"Meals\"),\"Day\",IF((D35=\"Mileage\"),\"Mile\",IF((D35=\"Transportation\"),\"Round-trip\",\"N/A\"))))","v":"N/A"},null,null,null,null,{"$f":"CEILING(F35*G35*H35*I35,1)","v":0},null,{"$f":"IF(J35-K35<0,0,J35-K35)","v":0}]
["Total(es)",null,null,null,null,null,null,null,null,{"$f":"SUM(J33:J35)","v":0},{"$f":"SUM(K33:K35)","v":0},{"$f":"SUM(L33:L35)","v":0}]
["Descripción"]
[]
[]
["D. Equipamiento"]
["Elemento",null,null,"Cálculo"]
["Enumere y describa cada uno de los equipos que se van a adquirir",null,null,"Calcule el coste (por ejemplo, el número de cada artículo que hay que comprar X el coste por artículo)"]
[null,null,null,"# Número de elementos",null,"Coste unitario",null,null,null,"Coste total","Contribución no federal","Solicitud federal"]
[]
[null,null,null,null,null,null,null,null,null,{"$f":"CEILING(D45*F45,1)","v":0},null,{"$f":"IF(J45-K45<0,0,J45-K45)","v":0}]
[null,null,null,null,null,null,null,null,null,{"$f":"CEILING(D46*F46,1)","v":0},null,{"$f":"IF(J46-K46<0,0,J46-K46)","v":0}]
[null,null,null,null,null,null,null,null,null,{"$f":"CEILING(D47*F47,1)","v":0},null,{"$f":"IF(J47-K47<0,0,J47-K47)","v":0}]
["Total(es)",null,null,null,null,null,null,null,null,{"$f":"SUM(J45:J47)","v":0},{"$f":"SUM(K45:K47)","v":0},{"$f":"SUM(L45:L47)","v":0}]
["Descripción"]
["Utilice las directrices del Tesoro del Estado de Nueva Jersey que definen el Equipo como un artículo individual que cueste 1.000 dólares o más.  Utilice la política de capitalización propia de la Agencia si el Equipo se define como un artículo individual que cueste menos de 1.000 dólares."]
[]
["E. Suministros"]
["Artículos de suministro",null,null,"Cálculo"]
["Proporcione una lista de los tipos de artículos que se comprarán con los fondos de la subvención.",null,null,"Describa el artículo y calcule los costes. Cálculo: el número de cada artículo que hay que comprar X el coste por artículo."]
[null,null,null,"# Número de elementos",null,"Coste unitario",null,null,null,"Coste total","Contribución no federal","Solicitud federal"]
[]
[null,null,null,null,null,null,null,null,null,{"$f":"CEILING(D57*F57,1)","v":0},null,{"$f":"IF(J57-K57<0,0,J57-K57)","v":0}]
[null,null,null,null,null,null,null,null,null,{"$f":"CEILING(D58*F58,1)","v":0},null,{"$f":"IF(J58-K58<0,0,J58-K58)","v":0}]
[null,null,null,null,null,null,null,null,null,{"$f":"CEILING(D59*F59,1)","v":0},null,{"$f":"IF(J59-K59<0,0,J59-K59)","v":0}]
["Total(es)",null,null,null,null,null,null,null,null,{"$f":"SUM(J57:J59)","v":0},{"$f":"SUM(K57:K59)","v":0},{"$f":"SUM(L57:L59)","v":0}]
["Descripción"]
["Utilice las directrices del Tesoro del Estado de Nueva Jersey que definen los suministros como un artículo individual que cuesta menos de 1.000 dólares.  Utilice la política propia de la agencia si los suministros se definen como un artículo que cuesta menos de 999 dólares.     "]
[]
["F. Construcción"]
["Objetivo","Descripción del trabajo",null,"Cálculo"]
["Indique la finalidad de la construcción","Describa el o los proyectos de construcción",null,"Calcule el coste (por ejemplo, el número de cada artículo que hay que comprar X el coste por artículo)"]
[null,null,null,"# Número de elementos",null,"Costo",null,null,null,"Coste total","Contribución no federal","Solicitud federal"]
[]
[null,null,null,null,null,null,null,null,null,{"$f":"CEILING(D69*F69,1)","v":0},null,{"$f":"IF(J69-K69<0,0,J69-K69)","v":0}]
[null,null,null,null,null,null,null,null,null,{"$f":"CEILING(D70*F70,1)","v":0},null,{"$f":"IF(J70-K70<0,0,J70-K70)","v":0}]
[null,null,null,null,null,null,null,null,null,{"$f":"CEILING(D71*F71,1)","v":0},null,{"$f":"IF(J71-K71<0,0,J71-K71)","v":0}]
["Total(es)",null,null,null,null,null,null,null,null,{"$f":"SUM(J69:J71)","v":0},{"$f":"SUM(K69:K71)","v":0},{"$f":"SUM(L69:L71)","v":0}]
["Descripción"]
[]
[]
["G. Subconcesiones (subvenciones)"]
["Descripción",null,"Objetivo",null,null,null,null,"¿Asesor?"]
["Describa las actividades que llevarán a cabo los subreceptores.",null,"Describa la finalidad de la subconcesión (subvención)",null,null,null,null,"¿La subvención es para un consultor? En caso afirmativo, utilice la sección siguiente para explicar los gastos de viaje asociados incluidos en el coste."]
[null,null,null,null,null,null,null,null,null,"Coste total","Contribución no federal","Solicitud federal"]
[]
[null,null,null,null,null,null,null,null,null,null,null,{"$f":"IF(J81-K81<0,0,J81-K81)","v":0}]
[null,null,null,null,null,null,null,null,null,null,null,{"$f":"IF(J82-K82<0,0,J82-K82)","v":0}]
[null,null,null,null,null,null,null,null,null,null,null,{"$f":"IF(J83-K83<0,0,J83-K83)","v":0}]
["Total(es)",null,null,null,null,null,null,null,null,{"$f":"SUM(J81:J83)+J93","v":0},{"$f":"SUM(K81:K83)+K93","v":0},{"$f":"SUM(L81:L83)+L93","v":0}]
["Viajes de los asesores (de ser necesarios)"]
["Propósito del viaje","Ubicación",null,"Tipo de gasto",null,null,"Cálculo"]
["Indique el objetivo de cada viaje o tipo de viaje (formación, reunión del grupo consultivo)","Indique el destino del viaje.",null,"Hotel, pasajes aéreos, viáticos",null,null,"Calcule el coste de cada tipo de gasto X el número de personas que viajan."]
[null,null,null,null,null,null,"Costo","Duración o distancia","# de Personal","Coste total","Contribución no federal","Solicitud federal"]
[]
[null,null,null,null,null,null,null,null,null,{"$f":"CEILING(G90*H90*I90,1)","v":0},null,{"$f":"IF(J90-K90<0,0,J90-K90)","v":0}]
[null,null,null,null,null,null,null,null,null,{"$f":"CEILING(G91*H91*I91,1)","v":0},null,{"$f":"IF(J91-K91<0,0,J91-K91)","v":0}]
[null,null,null,null,null,null,null,null,null,{"$f":"CEILING(G92*H92*I92,1)","v":0},null,{"$f":"IF(J92-K92<0,0,J92-K92)","v":0}]
["Total",null,null,null,null,null,null,null,null,{"$f":"SUM(J90:J92)","v":0},{"$f":"SUM(K90:K92)","v":0},{"$f":"SUM(L90:L92)","v":0}]
["Descripción"]
[]
[]
["H. Contratos de adquisición"]
["Descripción",null,"Objetivo",null,null,null,null,"¿Asesor?"]
["Describa el producto o servicio que se va a adquirir por contrato y haga una estimación del coste.  Se anima a los solicitantes a promover la competencia libre y abierta en la adjudicación de contratos.  Se debe proporcionar una justificación separada para las adquisiciones de fuente única que superen el Umbral de Adquisición Simplificada (actualmente 150.000 dólares). ",null,"Describa el propósito del contrato",null,null,null,null,"¿La subvención es para un consultor? En caso afirmativo, utilice la sección siguiente para explicar los gastos de viaje asociados incluidos en el coste."]
[null,null,null,null,null,null,null,null,null,"Coste total","Contribución no federal","Solicitud federal"]
[]
[null,null,null,null,null,null,null,null,null,null,null,{"$f":"IF(J102-K102<0,0,J102-K102)","v":0}]
[null,null,null,null,null,null,null,null,null,null,null,{"$f":"IF(J103-K103<0,0,J103-K103)","v":0}]
[null,null,null,null,null,null,null,null,null,null,null,{"$f":"IF(J104-K104<0,0,J104-K104)","v":0}]
["Total(es)",null,null,null,null,null,null,null,null,{"$f":"SUM(J102:J104)+J114","v":0},{"$f":"SUM(K102:K104)+K114","v":0},{"$f":"SUM(L102:L104)+L114","v":0}]
["Viajes de los asesores (de ser necesarios)"]
["Propósito del viaje","Ubicación",null,"Tipo de gasto",null,null,"Cálculo"]
["Indique el objetivo de cada viaje o tipo de viaje (formación, reunión del grupo consultivo)","Indique el destino del viaje.",null,"Hotel, pasajes aéreos, viáticos",null,null,"Calcula el coste de cada tipo de gasto X el número de personas que viajan."]
[null,null,null,null,null,null,"Costo","Duración o distancia","# de Personal","Coste total","Contribución no federal","Solicitud federal"]
[]
[null,null,null,null,null,null,null,null,null,{"$f":"CEILING(G111*H111*I111,1)","v":0},null,{"$f":"IF(J111-K111<0,0,J111-K111)","v":0}]
[null,null,null,null,null,null,null,null,null,{"$f":"CEILING(G112*H112*I112,1)","v":0},null,{"$f":"IF(J112-K112<0,0,J112-K112)","v":0}]
[null,null,null,null,null,null,null,null,null,{"$f":"CEILING(G113*H113*I113,1)","v":0},null,{"$f":"IF(J113-K113<0,0,J113-K113)","v":0}]
["Total",null,null,null,null,null,null,null,null,{"$f":"SUM(J111:J113)","v":0},{"$f":"SUM(K111:K113)","v":0},{"$f":"SUM(L111:L113)","v":0}]
["Descripción"]
[]
[]
["I. Otros costes"]
["Descripción ",null,"Cálculo"]
["Enumere y describa los elementos que se pagarán con los fondos de las subvenciones (por ejemplo, alquiler, copias, teléfono, conserjería o servicios de seguridad, y fondos de investigación o confidenciales).",null,"Mostrar la base de cálculo"]
[null,null,"Cantidad",null,"Base","Costo",null,"Duración",null,"Coste total","Contribución no federal","Solicitud federal"]
[]
[null,null,null,null,null,null,null,null,null,{"$f":"CEILING(C123*F123*H123,1)","v":0},null,{"$f":"IF(J123-K123<0,0,J123-K123)","v":0}]
[null,null,null,null,null,null,null,null,null,{"$f":"CEILING(C124*F124*H124,1)","v":0},null,{"$f":"IF(J124-K124<0,0,J124-K124)","v":0}]
[null,null,null,null,null,null,null,null,null,{"$f":"CEILING(C125*F125*H125,1)","v":0},null,{"$f":"IF(J125-K125<0,0,J125-K125)","v":0}]
["Total(es)",null,null,null,null,null,null,null,null,{"$f":"SUM(J123:J125)","v":0},{"$f":"SUM(K123:K125)","v":0},{"$f":"SUM(L123:L125)","v":0}]
["Descripción"]
[]
[]
["J. Costos indirectos"]
["Descripción",null,null,"Cálculo"]
["Describa cuál es la tasa aprobada y cómo se aplica.",null,null,"Calcule los costes indirectos para las partes del programa que permiten tales costes."]
[null,null,null,"Base",null,"Tasa de costos indirectos",null,null,null,"Coste total","Contribución no federal","Solicitud federal"]
[]
[null,null,null,null,null,null,null,null,null,{"$f":"CEILING(D135*F135,1)","v":0},null,{"$f":"IF(J135-K135<0,0,J135-K135)","v":0}]
[null,null,null,null,null,null,null,null,null,{"$f":"CEILING(D136*F136,1)","v":0},null,{"$f":"IF(J136-K136<0,0,J136-K136)","v":0}]
[null,null,null,null,null,null,null,null,null,{"$f":"CEILING(D137*F137,1)","v":0},null,{"$f":"IF(J137-K137<0,0,J137-K137)","v":0}]
["Total(es)",null,null,null,null,null,null,null,null,{"$f":"SUM(J135:J137)","v":0},{"$f":"SUM(K135:K137)","v":0},{"$f":"SUM(L135:L137)","v":0}]
["Descripción"]

{"sheet":"Resumen del presupuesto","index":7,"n_rows":22,"n_cols":12,"rows_kept":22,"cut":false,"hidden":false,"merged":[[0,0,0,11],[1,0,1,11],[3,2,6,2],[3,11,6,11],[3,1,6,1],[2,1,2,2],[2,3,2,4],[3,3,6,3],[3,4,6,4],[2,5,2,6],[3,5,6,5],[3,6,6,6],[2,7,2,8],[3,7,6,7],[3,8,6,8],[21,0,21,8],[21,9,21,11],[2,9,2,10],[3,9,6,9],[3,10,6,10],[3,0,6,0]]}
["Resumen del presupuesto"]
["Nota: Cualquier error detectado en esta página debe ser corregido en la pestaña correspondiente de Detalle del Presupuesto."]
[null,"Año 1",null,"Año 2\n( de ser necesario)",null,"Año 3\n( de ser necesario)",null,"Año 4\n( de ser necesario)",null,"Año 5\n( de ser necesario)"]
["Categoría presupuestaria","Solicitud federal","Solicitud no federal","Solicitud federal","Solicitud no federal","Solicitud federal","Solicitud no federal","Solicitud federal","Solicitud no federal","Solicitud federal","Solicitud no federal","Total(es)"]
[]
[]
[]
["A. Personal",{"$f":"'Detalle del presupuesto Año 1'!L12","v":0},{"$f":"'Detalle del presupuesto Año 1'!K12","v":0},{"$f":"'Detalle del presupuesto Año 2'!L12","v":0},{"$f":"'Detalle del presupuesto Año 2'!K12","v":0},{"$f":"'Detalle del presupuesto Año 3'!L12","v":0},{"$f":"'Detalle del presupuesto Año 3'!K12","v":0},{"$f":"'Detalle del presupuesto Año 4'!L12","v":0},{"$f":"'Detalle del presupuesto Año 4'!K12","v":0},{"$f":"'Detalle del presupuesto Año 5'!L12","v":0},{"$f":"'Detalle del presupuesto Año 5'!K12","v":0},{"$f":"SUM(B8:K8)","v":0}]
["B. Beneficios adicionales",{"$f":"'Detalle del presupuesto Año 1'!L24","v":0},{"$f":"'Detalle del presupuesto Año 1'!K24","v":0},{"$f":"'Detalle del presupuesto Año 2'!L24","v":0},{"$f":"'Detalle del presupuesto Año 2'!K24","v":0},{"$f":"'Detalle del presupuesto Año 3'!L24","v":0},{"$f":"'Detalle del presupuesto Año 3'!K24","v":0},{"$f":"'Detalle del presupuesto Año 4'!L24","v":0},{"$f":"'Detalle del presupuesto Año 4'!K24","v":0},{"$f":"'Detalle del presupuesto Año 5'!L24","v":0},{"$f":"'Detalle del presupuesto Año 5'!K24","v":0},0]
["C. Viajes",{"$f":"'Detalle del presupuesto Año 1'!L36","v":0},{"$f":"'Detalle del presupuesto Año 1'!K36","v":0},{"$f":"'Detalle del presupuesto Año 2'!L36","v":0},{"$f":"'Detalle del presupuesto Año 2'!K36","v":0},{"$f":"'Detalle del presupuesto Año 3'!L36","v":0},{"$f":"'Detalle del presupuesto Año 3'!K36","v":0},{"$f":"'Detalle del presupuesto Año 4'!L36","v":0},{"$f":"'Detalle del presupuesto Año 4'!K36","v":0},{"$f":"'Detalle del presupuesto Año 5'!L36","v":0},{"$f":"'Detalle del presupuesto Año 5'!K36","v":0},0]
["D. Equipo",{"$f":"'Detalle del presupuesto Año 1'!L48","v":0},{"$f":"'Detalle del presupuesto Año 1'!K48","v":0},{"$f":"'Detalle del presupuesto Año 2'!L48","v":0},{"$f":"'Detalle del presupuesto Año 2'!K48","v":0},{"$f":"'Detalle del presupuesto Año 3'!L48","v":0},{"$f":"'Detalle del presupuesto Año 3'!K48","v":0},{"$f":"'Detalle del presupuesto Año 4'!L48","v":0},{"$f":"'Detalle del presupuesto Año 4'!K48","v":0},{"$f":"'Detalle del presupuesto Año 5'!L48","v":0},{"$f":"'Detalle del presupuesto Año 5'!K48","v":0},0]
["E. Suministros",{"$f":"'Detalle del presupuesto Año 1'!L60","v":0},{"$f":"'Detalle del presupuesto Año 1'!K60","v":0},{"$f":"'Detalle del presupuesto Año 2'!L60","v":0},{"$f":"'Detalle del presupuesto Año 2'!K60","v":0},{"$f":"'Detalle del presupuesto Año 3'!L60","v":0},{"$f":"'Detalle del presupuesto Año 3'!K60","v":0},{"$f":"'Detalle del presupuesto Año 4'!L60","v":0},{"$f":"'Detalle del presupuesto Año 4'!K60","v":0},{"$f":"'Detalle del presupuesto Año 5'!L60","v":0},{"$f":"'Detalle del presupuesto Año 5'!K60","v":0},0]
["F. Construcción",{"$f":"'Detalle del presupuesto Año 1'!L72","v":0},{"$f":"'Detalle del presupuesto Año 1'!K72","v":0},{"$f":"'Detalle del presupuesto Año 2'!L72","v":0},{"$f":"'Detalle del presupuesto Año 2'!K72","v":0},{"$f":"'Detalle del presupuesto Año 3'!L72","v":0},{"$f":"'Detalle del presupuesto Año 3'!K72","v":0},{"$f":"'Detalle del presupuesto Año 4'!L72","v":0},{"$f":"'Detalle del presupuesto Año 4'!K72","v":0},{"$f":"'Detalle del presupuesto Año 5'!L72","v":0},{"$f":"'Detalle del presupuesto Año 5'!K72","v":0},0]
["G. Subconcesiones (subvenciones)",{"$f":"'Detalle del presupuesto Año 1'!L84","v":0},{"$f":"'Detalle del presupuesto Año 1'!K84","v":0},{"$f":"'Detalle del presupuesto Año 2'!L84","v":0},{"$f":"'Detalle del presupuesto Año 2'!K84","v":0},{"$f":"'Detalle del presupuesto Año 3'!L84","v":0},{"$f":"'Detalle del presupuesto Año 3'!K84","v":0},{"$f":"'Detalle del presupuesto Año 4'!L84","v":0},{"$f":"'Detalle del presupuesto Año 4'!K84","v":0},{"$f":"'Detalle del presupuesto Año 5'!L84","v":0},{"$f":"'Detalle del presupuesto Año 5'!K84","v":0},0]
["H. Contratos de adquisición",{"$f":"'Detalle del presupuesto Año 1'!L105","v":0},{"$f":"'Detalle del presupuesto Año 1'!K105","v":0},{"$f":"'Detalle del presupuesto Año 2'!L105","v":0},{"$f":"'Detalle del presupuesto Año 2'!K105","v":0},{"$f":"'Detalle del presupuesto Año 3'!L105","v":0},{"$f":"'Detalle del presupuesto Año 3'!K105","v":0},{"$f":"'Detalle del presupuesto Año 4'!L105","v":0},{"$f":"'Detalle del presupuesto Año 4'!K105","v":0},{"$f":"'Detalle del presupuesto Año 5'!L105","v":0},{"$f":"'Detalle del presupuesto Año 5'!K105","v":0},0]
["I. Otros",{"$f":"'Detalle del presupuesto Año 1'!L126","v":0},{"$f":"'Detalle del presupuesto Año 1'!K126","v":0},{"$f":"'Detalle del presupuesto Año 2'!L126","v":0},{"$f":"'Detalle del presupuesto Año 2'!K126","v":0},{"$f":"'Detalle del presupuesto Año 3'!L126","v":0},{"$f":"'Detalle del presupuesto Año 3'!K126","v":0},{"$f":"'Detalle del presupuesto Año 4'!L126","v":0},{"$f":"'Detalle del presupuesto Año 4'!K126","v":0},{"$f":"'Detalle del presupuesto Año 5'!L126","v":0},{"$f":"'Detalle del presupuesto Año 5'!K126","v":0},0]
[]
["Costes directos totales",{"$f":"SUM(B8:B16)","v":0},0,0,0,0,0,0,0,0,0,{"$f":"SUM(B18:K18)","v":0}]
["J. Costos indirectos",{"$f":"'Detalle del presupuesto Año 1'!L138","v":0},{"$f":"'Detalle del presupuesto Año 1'!K138","v":0},{"$f":"'Detalle del presupuesto Año 2'!L138","v":0},{"$f":"'Detalle del presupuesto Año 2'!K138","v":0},{"$f":"'Detalle del presupuesto Año 3'!L138","v":0},{"$f":"'Detalle del presupuesto Año 3'!K138","v":0},{"$f":"'Detalle del presupuesto Año 4'!L138","v":0},{"$f":"'Detalle del presupuesto Año 4'!K138","v":0},{"$f":"'Detalle del presupuesto Año 5'!L138","v":0},{"$f":"'Detalle del presupuesto Año 5'!K138","v":0},{"$f":"SUM(B19:K19)","v":0}]
[]
["Costes totales del proyecto",{"$f":"SUM(B18,B19)","v":0},0,{"$f":"SUM(D18,D19)","v":0},0,0,0,0,0,0,0,{"$f":"SUM(B21:K21)","v":0}]
["¿Incluye este presupuesto los costes de conferencias, que se definen de forma amplia para incluir reuniones, retiros, seminarios, simposios y actividades de formación? S/N",null,null,null,null,null,null,null,null,{"$f":"IF(OR('Detalle del presupuesto Año 1'!K2=\"Yes\",'[2]Budget Detail - Year 2'!K2=\"Yes\",'[3]Budget Detail - Year 3'!K2=\"Yes\",'[4]Budget Detail - Year 4'!K2=\"Yes\",'[5]Budget Detail - Year 5'!K2=\"Yes\"),\"Yes\",\"No\")","v":{"$error":"#REF!"}}]

{"sheet":"Admin","index":8,"n_rows":1,"n_cols":1,"rows_kept":1,"cut":false,"hidden":true,"merged":[]}
["devuser1"]

{"sheet":"Reference Data","index":9,"n_rows":38,"n_cols":3,"rows_kept":38,"cut":false,"hidden":true,"merged":[]}
[{"$f":"19760","v":19760},{"$f":"A1*0.9","v":17784},{"$f":"A1*0.1","v":1976}]
[]
[]
[]
[]
["PA1 Equipment Dropdown Options"]
["Vehicles"]
["Vehicles w/ accessory package"]
["Radios"]
["Computers"]
["Computer Aided Dispatch"]
["Records Management System"]
["Communication System"]
["Basic Issue Firearm"]
["Basic Issue Equipment"]
["Bullet Proof Vests"]
[]
["PA1 Supplies Dropdown Options"]
["Basic Issue Uniforms"]
[]
["PA1 Personnel Options"]
["Entry Level Sworn Officer"]
["Village Public Safety Officer (AK Only)"]
["Entry Level Sworn Ranger"]
["Entry Level Sworn Conservation and Wildlife Officer"]
["Civilian Methamphetamine Coordinator"]
[]
["Demographics Yes No Options"]
["Yes"]
["No"]
[]
["Travel Items"]
["Lodging"]
["Meals"]
["Mileage"]
["Transportation"]
["Local Travel"]
["Other"]

{"sheet":"Ej - detalle del presupuesto","index":10,"n_rows":163,"n_cols":12,"rows_kept":163,"cut":false,"hidden":false,"merged":[[6,0,7,1],[6,2,7,3],[6,4,7,4],[6,5,7,6],[6,7,7,8],[6,9,7,9],[0,0,0,5],[0,7,0,11],[4,2,4,11],[5,2,5,11],[6,10,7,10],[6,11,7,11],[1,10,2,11],[1,0,1,9],[2,0,2,1],[8,2,8,3],[8,5,8,6],[8,7,8,8],[12,2,12,3],[12,5,12,6],[12,7,12,8],[9,2,9,3],[9,5,9,6],[9,7,9,8],[28,0,28,8],[30,0,31,11],[33,1,33,2],[33,5,33,11],[34,1,34,2],[34,5,34,11],[23,0,23,2],[23,3,23,4],[23,5,23,8],[27,0,27,2],[27,3,27,4],[27,5,27,8],[26,0,26,2],[26,3,26,4],[26,5,26,8],[25,0,25,2],[25,3,25,4],[25,5,25,8],[24,0,24,2],[24,3,24,4],[24,5,24,8],[35,10,36,10],[35,11,36,11],[37,1,37,2],[51,1,51,2],[52,0,52,8],[54,0,55,11],[48,1,48,2],[47,1,47,2],[46,1,46,2],[45,1,45,2],[35,0,36,4],[35,5,36,5],[35,6,36,6],[35,7,36,7],[35,8,36,8],[35,9,36,9],[38,1,38,2],[44,1,44,2],[43,1,43,2],[42,1,42,2],[41,1,41,2],[40,1,40,2],[39,1,39,2],[63,5,63,8],[57,0,57,2],[57,3,57,11],[58,0,58,2],[58,3,58,11],[59,0,60,2],[59,3,60,4],[59,5,60,8],[59,9,60,9],[59,10,60,10],[59,11,60,11],[62,0,62,2],[62,3,62,4],[62,5,62,8],[61,0,61,2],[61,3,61,4],[61,5,61,8],[63,0,63,1],[63,3,63,4],[71,9,72,9],[71,10,72,10],[71,11,72,11],[64,0,64,8],[66,0,67,11],[69,0,69,2],[69,3,69,11],[70,0,70,2],[70,3,70,11],[78,0,78,1],[78,3,78,4],[78,5,78,8],[75,0,75,2],[75,3,75,4],[75,5,75,8],[74,0,74,2],[71,0,72,2],[71,3,72,4],[71,5,72,8],[77,0,77,2],[77,3,77,4],[77,5,77,8],[76,0,76,2],[76,3,76,4],[76,5,76,8],[73,0,73,2],[73,3,73,4],[73,5,73,8],[74,3,74,4],[74,5,74,8],[86,0,87,2],[86,3,87,4],[86,5,87,8],[86,9,87,9],[86,10,87,10],[86,11,87,11],[79,0,79,8],[81,0,82,11],[84,1,84,2],[84,3,84,11],[85,1,85,2],[85,3,85,11],[83,1,83,11],[89,0,89,8],[91,0,92,11],[93,0,93,1],[94,0,94,1],[94,9,95,11],[95,0,95,1],[88,1,88,2],[88,3,88,4],[88,5,88,8],[94,2,94,6],[95,2,95,6],[94,7,94,8],[95,7,95,8],[101,0,101,8],[112,0,113,11],[114,0,114,1],[115,0,115,1],[116,0,116,1],[96,9,97,9],[96,10,97,10],[96,11,97,11],[98,0,98,1],[98,2,98,8],[100,0,100,1],[100,2,100,8],[99,0,99,1],[115,2,115,6],[116,2,116,6],[115,7,115,8],[116,7,116,8],[99,2,99,6],[99,7,99,8],[102,0,102,1],[103,1,103,2],[103,3,103,5],[103,6,103,11],[104,1,104,2],[136,0,136,11],[138,0,138,1],[138,2,138,11],[139,0,139,1],[139,2,139,11],[140,2,141,3],[140,4,141,4],[140,5,141,6],[140,7,141,8],[140,9,141,9],[155,3,156,4],[155,5,156,8],[155,9,156,9],[155,10,156,10],[155,11,156,11],[147,0,147,1],[147,2,147,3],[147,5,147,6],[147,7,147,8],[148,0,148,8],[150,0,151,11],[160,0,160,8],[162,0,163,11],[11,2,11,3],[11,5,11,6],[11,7,11,8],[10,2,10,3],[10,5,10,6],[10,7,10,8],[50,1,50,2],[49,1,49,2],[157,0,157,2],[157,3,157,4],[157,5,157,8],[159,0,159,2],[159,3,159,4],[159,5,159,8],[158,0,158,2],[158,3,158,4],[158,5,158,8],[153,0,153,2],[153,3,153,11],[154,0,154,2],[154,3,154,11],[155,0,156,2],[20,0,20,2],[20,3,20,11],[21,0,22,2],[21,3,22,4],[21,5,22,8],[21,9,22,9],[21,10,22,10],[21,11,22,11],[13,2,13,3],[13,5,13,6],[13,7,13,8],[14,0,14,8],[16,0,17,11],[19,0,19,2],[19,3,19,11],[123,0,123,8],[134,0,135,11],[146,0,146,1],[146,2,146,3],[146,5,146,6],[146,7,146,8],[145,0,145,1],[145,2,145,3],[145,5,145,6],[145,7,145,8],[144,0,144,1],[144,2,144,3],[144,5,144,6],[144,7,144,8],[143,0,143,1],[143,2,143,3],[143,5,143,6],[143,7,143,8],[140,10,141,10],[140,11,141,11],[142,0,142,1],[142,2,142,3],[142,5,142,6],[142,7,142,8],[104,3,104,5],[104,6,104,11],[105,0,106,5],[105,6,106,6],[105,7,106,7],[105,8,106,8],[105,9,106,9],[105,10,106,10],[105,11,106,11],[107,1,107,2],[107,3,107,5],[108,1,108,2],[108,3,108,5],[109,1,109,2],[109,3,109,5],[110,0,110,8],[124,0,124,1],[125,1,125,2],[125,3,125,5],[125,6,125,11],[117,9,118,9],[117,10,118,10],[117,11,118,11],[119,0,119,1],[119,2,119,8],[120,7,120,8],[121,7,121,8],[120,0,120,1],[120,2,120,6],[121,2,121,6],[121,0,121,1],[122,0,122,1],[122,2,122,8],[129,1,129,2],[129,3,129,5],[130,1,130,2],[130,3,130,5],[131,1,131,2],[131,3,131,5],[132,0,132,8],[126,1,126,2],[126,3,126,5],[126,6,126,11],[127,0,128,5],[127,6,128,6],[127,7,128,7],[127,8,128,8],[127,9,128,9],[127,10,128,10],[127,11,128,11]]}
["Detalle del presupuesto\nEJEMPLO"]
["¿Incluye este presupuesto los costes de conferencias, que se definen de forma amplia para incluir reuniones, retiros, seminarios, simposios y actividades de formación? S/N"]
["(Guía financiera del DOJ, sección 3.10)"]
["A. Personal"]
["Nombre","Cargo","Cálculo"]
["Mencione cada nombre, en caso de que lo conozca.","Mencione cada Cargo, en caso de que lo conozca.","Indique la tasa de salario anual y la cantidad de tiempo dedicado al proyecto para cada nombre/puesto."]
[null,null,"Salario ",null,"Tasa","Tiempo trabajado\n(número de horas, días, meses, años) ",null,"Porcentaje de tiempo",null,"Coste total","Contribución no federal","Solicitud federal"]
[]
[null,null,null,null,null,null,null,null,null,{"$f":"CEILING(C9*F9*H9,1)","v":0},null,{"$f":"IF(J9-K9<0,0,J9-K9)","v":0}]
["John Smith","Director Ejecutivo",140000,null,"Anualmente",1,null,0.05,null,7000,0,7000]
["Jane Doe","Directora de proyectos",90000,null,"Anualmente",1,null,0.75,null,67500,0,67500]
["Alex Jones","Asistente de programa",22,null,"por hora",1040,null,1,null,22880,0,22880]
[null,null,null,null,null,null,null,null,null,0,null,0]
[null,null,null,null,null,null,null,null,null,0,null,0]
["Total(es)",null,null,null,null,null,null,null,null,{"$f":"SUM(J9:J14)","v":97380},{"$f":"SUM(K9:K14)","v":0},{"$f":"SUM(L9:L14)","v":97380}]
["Descripción"]
["John Smith, Director Ejecutivo, se encargará de la supervisión de toda la adjudicación, dedicando un 5% de su tiempo al proyecto.\nJane Doe, directora del proyecto, gestionará el proyecto, completará los informes y presentará los resultados, dedicando el 75% de su tiempo al proyecto.\nAlex Jones, asistente de programa, prestará asistencia al director del proyecto cuando sea necesario, dedicando 1.040 horas al proyecto.\n"]
[]
["B. Beneficios adicionales"]
["Nombre",null,null,"Cálculo"]
["Enumere cada uno de los puestos financiados por la subvención que reciban beneficios adicionales.",null,null,"Mostrar la base de cálculo"]
[null,null,null,"Base",null,"Tasa",null,null,null,"Coste total","Contribución no federal","Solicitud federal"]
[]
[null,null,null,null,null,null,null,null,null,{"$f":"CEILING(D24*F24,1)","v":0},null,{"$f":"IF(J24-K24<0,0,J24-K24)","v":0}]
["John Smith",null,null,7000,null,0.25,null,null,null,{"$f":"CEILING(D25*F25,1)","v":1750},0,{"$f":"IF(J25-K25<0,0,J25-K25)","v":1750}]
["Jane Doe",null,null,67500,null,0.25,null,null,null,{"$f":"CEILING(D26*F26,1)","v":16875},0,{"$f":"IF(J26-K26<0,0,J26-K26)","v":16875}]
["Alex Jones",null,null,22880,null,0.25,null,null,null,{"$f":"CEILING(D27*F27,1)","v":5720},0,{"$f":"IF(J27-K27<0,0,J27-K27)","v":5720}]
[null,null,null,null,null,null,null,null,null,{"$f":"CEILING(D28*F28,1)","v":0},null,{"$f":"IF(J28-K28<0,0,J28-K28)","v":0}]
["Total(es)",null,null,null,null,null,null,null,null,{"$f":"SUM(J24:J28)","v":24345},{"$f":"SUM(K24:K28)","v":0},{"$f":"SUM(L24:L28)","v":24345}]
["Descripción"]
["Nuestra tasa de beneficios complementarios es del 25% y cubre los siguientes elementos: FICA (7,65%), compensación laboral (1,35%), seguro médico (11%), jubilación (5%)"]
[]
["C. Viajes"]
["Propósito del viaje","Ubicación",null,"Tipo de gasto","Base","Cálculo"]
["Indique el objetivo de cada viaje o tipo de viaje (formación, reunión del grupo consultivo)","Indique el destino del viaje.",null,"Alojamiento, comidas, etc.","Por día, milla, viaje, etc.","Calcula el coste de cada tipo de gasto X el número de personas que viajan."]
[null,null,null,null,null,"Costo","Cantidad","# de Personal","# Número de viajes","Coste total","Contribución no federal","Solicitud federal"]
[]
[null,null,null,null,{"$f":"IF((D38=\"Lodging\"),\"Night\",IF((D38=\"Meals\"),\"Day\",IF((D38=\"Mileage\"),\"Mile\",IF((D38=\"Transportation\"),\"Round-trip\",\"N/A\"))))","v":"N/A"},null,null,null,null,{"$f":"CEILING(F38*G38*H38*I38,1)","v":0},null,{"$f":"IF(J38-K38<0,0,J38-K38)","v":0}]
["Capacitación para gerentes de proyecto","Reno, NV",null,"Otro","N/A",50,1,1,1,50,0,50]
["Capacitación para gerentes de proyecto","Reno, NV",null,"Viaje local","N/A",50,1,1,1,50,0,50]
["Capacitación para gerentes de proyecto","Reno, NV",null,"Transporte","N/A",600,1,1,1,600,0,600]
["Capacitación para gerentes de proyecto","Reno, NV",null,"Kilometraje","N/A",0.51,100,1,1,51,0,51]
["Capacitación para gerentes de proyecto","Reno, NV",null,"Comidas","N/A",51,5.5,1,1,281,0,281]
["Capacitación para gerentes de proyecto","Reno, NV",null,"Alojamiento","N/A",94,5,1,1,470,0,470]
["Viaje de campo del director de proyecto","Varios",null,"Kilometraje","N/A",0.51,250,1,20,2550,0,2550]
["Formación de orientación obligatoria","Washington, DC",null,"Viaje local","N/A",25,1,3,1,75,0,75]
["Formación de orientación obligatoria","Washington, DC",null,"Otro","N/A",50,1,3,1,150,0,150]
["Formación de orientación obligatoria","Washington, DC",null,"Transporte","N/A",500,1,3,1,1500,0,1500]
["Formación de orientación obligatoria","Washington, DC",null,"Kilometraje","N/A",0.51,100,1,1,51,0,51]
["Formación de orientación obligatoria","Washington, DC",null,"Comidas","N/A",71,3.5,3,1,746,0,746]
["Formación de orientación obligatoria","Washington, DC",null,"Alojamiento","N/A",224,3,3,1,2016,0,2016]
[null,null,null,null,"N/A",null,null,null,null,0,null,0]
["Total(es)",null,null,null,null,null,null,null,null,{"$f":"SUM(J38:J52)","v":8590},{"$f":"SUM(K38:K52)","v":0},{"$f":"SUM(L38:L52)","v":8590}]
["Descripción"]
["Según las directrices del programa, los miembros clave deben asistir a la formación de orientación en Washington, DC.  Seguimos nuestra propia política de viajes establecida por escrito.  El alojamiento es para 3 noches y las comidas se presupuestan en 3,5 días ya que los dos días de viaje se computan en 0,75 días.  El kilometraje para llegar al aeropuerto y los desplazamientos locales son para el taxi de ida y vuelta.  También los gastos de equipaje de 50 dólares son 25 dólares por trayecto.\n\nEl director del proyecto asistirá a la formación en Reno, NV.  Seguimos nuestra propia política de viajes establecida por escrito.  El alojamiento es para 5 noches y las comidas se presupuestan en 5,5 días ya que los dos días de viaje se computan en 0,75 días.  El kilometraje para llegar al aeropuerto y los desplazamientos locales son para el taxi de ida y vuelta.  Además, los gastos de equipaje de 50 dólares son de 25 dólares por trayecto.\n\nLa directora del proyecto utilizará su propio vehículo para realizar el trabajo de campo, con un viaje medio de unos 250 millas y una previsión de 20 viajes."]
[]
["D. Equipo"]
["Elemento",null,null,"Cálculo"]
["Enumere y describa cada uno de los equipos que se van a adquirir",null,null,"Calcular el coste (por ejemplo, el número de cada artículo que hay que comprar X el coste por artículo)"]
[null,null,null,"# Número de elementos",null,"Costo",null,null,null,"Coste total","Contribución no federal","Solicitud federal"]
[]
[null,null,null,null,null,null,null,null,null,{"$f":"CEILING(D62*F62,1)","v":0},null,{"$f":"IF(J62-K62<0,0,J62-K62)","v":0}]
["Computador portátil Dell",null,null,1,null,2547,null,null,null,{"$f":"CEILING(D63*F63,1)","v":2547},0,{"$f":"IF(J63-K63<0,0,J63-K63)","v":2547}]
[null,null,null,null,null,null,null,null,null,{"$f":"CEILING(D64*F64,1)","v":0},null,{"$f":"IF(J64-K64<0,0,J64-K64)","v":0}]
["Total(es)",null,null,null,null,null,null,null,null,{"$f":"SUM(J62:J64)","v":2547},{"$f":"SUM(K62:K64)","v":0},{"$f":"SUM(L62:L64)","v":2547}]
["Descripción"]
["El director del proyecto necesitará un computador portátil mientras esté en trabajo de campo y durante la formación.  Seguimos la política de capitalización de nuestra agencia."]
[]
["E. Suministros"]
["Artículos de suministro",null,null,"Cálculo"]
["Proporcione una lista de los tipos de artículos que se comprarán con los fondos de la subvención.",null,null,"Describa el artículo y calcule los costes. Cálculo: el número de cada artículo que hay que comprar X el coste por artículo."]
[null,null,null,"# Número de elementos",null,"Costo",null,null,null,"Coste total","Contribución no federal","Solicitud federal"]
[]
[null,null,null,null,null,null,null,null,null,{"$f":"CEILING(D74*F74,1)","v":0},null,{"$f":"IF(J74-K74<0,0,J74-K74)","v":0}]
["Impresora",null,null,1,null,500,null,null,null,500,0,500]
["Archivador con cerradura",null,null,2,null,1000,null,null,null,2000,0,2000]
["Escáner plano",null,null,1,null,400,null,null,null,400,0,400]
["Material de oficina en general",null,null,12,null,150,null,null,null,1800,0,1800]
[null,null,null,null,null,null,null,null,null,0,null,0]
["Total(es)",null,null,null,null,null,null,null,null,{"$f":"SUM(J74:J79)","v":4700},{"$f":"SUM(K74:K79)","v":0},{"$f":"SUM(L74:L79)","v":4700}]
["Descripción"]
["El director del proyecto necesitará una impresora para imprimir los informes.  Se necesita un archivador con cerradura para mantener segura la información de los clientes. Se necesita un escáner plano para escanear diversos documentos recogidos sobre el terreno.  Todo el personal de este proyecto utilizará material de oficina general: bolígrafos, lápices, papel, clips y otros suministros básicos.  El material de oficina está basado en 12 meses a 150 dólares al mes.  Esta cantidad se determinó en función de otros proyectos de esta envergadura que hemos realizado en el pasado."]
[]
["F. Construcción","Por regla general, los costes de construcción no son admisibles. Consulte con la oficina del programa antes de presupuestar fondos en esta categoría."]
["Objetivo","Descripción del trabajo",null,"Cálculo"]
["Indicar la finalidad de la construcción","Describa el o los proyectos de construcción",null,"Calcule el coste (por ejemplo, el número de cada artículo que hay que comprar X el coste por artículo)"]
[null,null,null,"# Número de elementos",null,"Costo",null,null,null,"Coste total","Contribución no federal","Solicitud federal"]
[]
[null,null,null,null,null,null,null,null,null,{"$f":"CEILING(D89*F89,1)","v":0},null,{"$f":"IF(J89-K89<0,0,J89-K89)","v":0}]
["Total(es)",null,null,null,null,null,null,null,null,{"$f":"SUM(J89:J89)","v":0},{"$f":"SUM(K89:K89)","v":0},{"$f":"SUM(L89:L89)","v":0}]
["Descripción"]
[]
[]
["G. Subconcesiones (subvenciones)"]
["Descripción",null,"Objetivo",null,null,null,null,"Asesor"]
["Describa las actividades que llevarán a cabo los subreceptores.",null,"Describa la finalidad de la subconcesión (subvención)",null,null,null,null,"¿La subvención es para un consultor?"]
[null,null,null,null,null,null,null,null,null,"Coste total","Contribución no federal","Solicitud federal"]
[]
[null,null,null,null,null,null,null,null,null,null,null,{"$f":"IF(J99-K99<0,0,J99-K99)","v":0}]
["Realiza actividades sobre el terreno en una zona remota",null,"Presta servicios y realizar trabajos de campo en una zona remota incluida en el proyecto",null,null,null,null,"No",null,25000,0,{"$f":"IF(J100-K100<0,0,J100-K100)","v":25000}]
[null,null,null,null,null,null,null,null,null,null,null,{"$f":"IF(J101-K101<0,0,J101-K101)","v":0}]
["Total(es)",null,null,null,null,null,null,null,null,{"$f":"SUM(J99:J101)","v":25000},{"$f":"SUM(K99:K101)","v":0},{"$f":"SUM(L99:L101)","v":25000}]
["Viajes de los asesores (de ser necesarios)"]
["Propósito del viaje","Ubicación",null,"Tipo de gasto",null,null,"Cálculo"]
["Indique el objetivo de cada viaje o tipo de viaje (formación, reunión del grupo consultivo)","Indique el destino del viaje.",null,"Hotel, pasajes aéreos, viáticos",null,null,"Calcula el coste de cada tipo de gasto X el número de personas que viajan."]
[null,null,null,null,null,null,"Costo","Duración o distancia","# de Personal","Coste total","Contribución no federal","Solicitud federal"]
[]
[null,null,null,null,null,null,null,null,null,{"$f":"CEILING(G108*H108*I108,1)","v":0},null,{"$f":"IF(J108-K108<0,0,J108-K108)","v":0}]
[null,null,null,null,null,null,null,null,null,{"$f":"CEILING(G109*H109*I109,1)","v":0},null,{"$f":"IF(J109-K109<0,0,J109-K109)","v":0}]
[null,null,null,null,null,null,null,null,null,{"$f":"CEILING(G110*H110*I110,1)","v":0},null,{"$f":"IF(J110-K110<0,0,J110-K110)","v":0}]
["Total",null,null,null,null,null,null,null,null,{"$f":"SUM(J108:J110)","v":0},{"$f":"SUM(K108:K110)","v":0},{"$f":"SUM(L108:L110)","v":0}]
["Descripción"]
["La agencia concederá una subvención para prestar servicios y realizar trabajos de campo en una zona remota.  Los 25.000 dólares se calcularon basándose en un proyecto de tamaño similar realizado en la misma zona."]
[]
["H. Contratos de adquisición"]
["Descripción",null,"Objetivo",null,null,null,null,"Asesor"]
["Describa el producto o servicio que se va a adquirir por contrato y haga una estimación del coste.  Se anima a los solicitantes a promover la competencia libre y abierta en la adjudicación de contratos.  Se debe proporcionar una justificación separada para las adquisiciones de fuente única que superen el Umbral de Adquisición Simplificada (actualmente 150.000 dólares). ",null,"Describa el propósito del contrato",null,null,null,null,"¿El contrato es para un consultor?"]
[null,null,null,null,null,null,null,null,null,"Coste total","Contribución no federal","Solicitud federal"]
[]
[null,null,null,null,null,null,null,null,null,null,null,{"$f":"IF(J120-K120<0,0,J120-K120)","v":0}]
["William Penn, CPA",null,"Asistencia contable",null,null,null,null,"Si",null,9400,0,{"$f":"IF(J121-K121<0,0,J121-K121)","v":9400}]
["Empresa ABC",null,"Servicios de creación de encuestas y de entrada de datos a partir de las encuestas enviadas.",null,null,null,null,"No",null,40000,0,{"$f":"IF(J122-K122<0,0,J122-K122)","v":40000}]
[null,null,null,null,null,null,null,null,null,null,null,{"$f":"IF(J123-K123<0,0,J123-K123)","v":0}]
["Total(es)",null,null,null,null,null,null,null,null,{"$f":"SUM(J120:J123)","v":49400},{"$f":"SUM(K120:K123)","v":0},{"$f":"SUM(L120:L123)","v":49400}]
["Viajes de los asesores (de ser necesarios)"]
["Propósito del viaje","Ubicación",null,"Tipo de gasto",null,null,"Cálculo"]
["Indique el objetivo de cada viaje o tipo de viaje (formación, reunión del grupo consultivo)","Indique el destino del viaje.",null,"Hotel, pasajes aéreos, viáticos",null,null,"Calcula el coste de cada tipo de gasto X el número de personas que viajan."]
[null,null,null,null,null,null,"Costo","Duración o distancia","# de Personal","Coste total","Contribución no federal","Solicitud federal"]
[]
[null,null,null,null,null,null,null,null,null,{"$f":"CEILING(G130*H130*I130,1)","v":0},null,{"$f":"IF(J130-K130<0,0,J130-K130)","v":0}]
[null,null,null,null,null,null,null,null,null,{"$f":"CEILING(G131*H131*I131,1)","v":0},null,{"$f":"IF(J131-K131<0,0,J131-K131)","v":0}]
[null,null,null,null,null,null,null,null,null,{"$f":"CEILING(G132*H132*I132,1)","v":0},null,{"$f":"IF(J132-K132<0,0,J132-K132)","v":0}]
["Total",null,null,null,null,null,null,null,null,{"$f":"SUM(J130:J132)","v":0},{"$f":"SUM(K130:K132)","v":0},{"$f":"SUM(L130:L132)","v":0}]
["Descripción"]
["La empresa ABC elaborará una encuesta en línea bajo la dirección del director del proyecto para llegar a los distintos lugares y determinar las necesidades.  Además, habrá una encuesta en papel para aquellos que no puedan utilizar la encuesta en línea.  La empresa ABC registrará las encuestas en papel.  Una vez realizadas las encuestas, la empresa ABC recopilará los datos para el director del proyecto.\n\nWilliam Penn ayudará a completar los informes financieros, así como el seguimiento de los gastos del subsidio.  La tarifa del Sr. Penn es de 47 dólares por hora, y estimamos que el Sr. Penn prestará 200 horas de servicios."]
[]
[]
["I. Otros costes"]
["Descripción ",null,"Cálculo"]
["Enumere y describa los elementos que se pagarán con los fondos de las subvenciones (por ejemplo, alquiler, copias, teléfono, conserjería o servicios de seguridad, y fondos de investigación o confidenciales).",null,"Mostrar la base de cálculo"]
[null,null,"Cantidad",null,"Base","Costo",null,"Duración",null,"Coste total","Contribución no federal","Solicitud federal"]
[]
[null,null,null,null,null,null,null,null,null,{"$f":"CEILING(C143*F143*H143,1)","v":0},null,{"$f":"IF(J143-K143<0,0,J143-K143)","v":0}]
["Renta",null,500,null,"pies cuadrados",2.5099999999999998,null,12,null,15060,0,15060]
["Teléfono",null,1,null,"tarifa mensual",50,null,12,null,600,0,600]
["Impresión",null,500,null,"por copia",0.05,null,12,null,300,0,300]
["Correos",null,1000,null,"boletín trimestral",0.5,null,4,null,2000,0,2000]
[null,null,null,null,null,null,null,null,null,0,null,0]
["Total(es)",null,null,null,null,null,null,null,null,{"$f":"SUM(J144:J148)","v":17960},{"$f":"SUM(K148:K148)","v":0},{"$f":"SUM(L144:L148)","v":17960}]
["Descripción"]
["La renta se cobra a 2,51 dólares por pie cuadrado al mes.\nEl teléfono se basa en 50 dólares al mes durante 12 meses.\nLa impresión se basa en 500 ejemplares al mes durante 12 meses.\nGastos de envío de un boletín trimestral para 1.000 destinatarios."]
[]
["J. Costos indirectos"]
["Descripción",null,null,"Cálculo"]
["Describa cuál es la tasa aprobada y cómo se aplica.",null,null,"Calcule los costes indirectos para las partes del programa que permiten tales costes."]
[null,null,null,"Base",null,"Tasa de costos indirectos",null,null,null,"Coste total","Contribución no federal","Solicitud federal"]
[]
[null,null,null,null,null,null,null,null,null,{"$f":"CEILING(D158*F158,1)","v":0},null,{"$f":"IF(J158-K158<0,0,J158-K158)","v":0}]
["Costos indirectos",null,null,121725,null,0.12540000000000001,null,null,null,{"$f":"CEILING(D159*F159,1)","v":15265},0,{"$f":"IF(J159-K159<0,0,J159-K159)","v":15265}]
[null,null,null,null,null,null,null,null,null,{"$f":"CEILING(D160*F160,1)","v":0},null,{"$f":"IF(J160-K160<0,0,J160-K160)","v":0}]
["Total(es)",null,null,null,null,null,null,null,null,{"$f":"SUM(J158:J160)","v":15265},{"$f":"SUM(K158:K160)","v":0},{"$f":"SUM(L158:L160)","v":15265}]
["Descripción"]
["Los costes indirectos se basan en la tasa aprobada por el gobierno federal del 12,54% sobre el total de la mano de obra directa (personal + gastos adicionales)."]

{"sheet":"Definiciones","index":11,"n_rows":15,"n_cols":2,"rows_kept":15,"cut":false,"hidden":false,"merged":[[0,0,0,1],[1,0,1,1]]}
["Definiciones"]
["Puede encontrar información adicional en la Guía Financiera del DOJ"]
["Guía financiera del DOJ"]
["Término","Definición"]
["Contrapartida","La contrapartida es la parte de los costes del proyecto que corresponde al beneficiario. La contrapartida puede ser \"en especie\" o \"en efectivo\". La contrapartida en especie incluye el valor de los servicios donados. La contrapartida en efectivo incluye el dinero real gastado por el beneficiario y debe tener una relación de costes con la subvención federal a la que se aplica la contrapartida. (Por ejemplo: La contrapartida de los costes administrativos debe ser otros costes administrativos, no otra contrapartida de\ncostes del programa). \n\nEjemplo de cálculo de la contrapartida no federal:\nCálculo de la contrapartida: Si la contrapartida es del 25%, el cálculo es el siguiente:\nSolicitud federal:  $350.000\nDividido por 0,75 o 75%:  $466.667\nMultiplicado por el importe de la contrapartida 0,25 o el 25%.\nequivale a la cuantía de la contrapartida requerida:  $116.667"]
["Tarifa negociada aprobada","La tarifa negociada aprobada es cualquier tarifa de beneficios adicionales actual aprobada para el beneficiario de la subvención por su agencia federal correspondiente."]
["Artículo fungible","Un artículo fungible es cualquier material que se consuma durante el transcurso del proyecto, como material de oficina, suministros para programas, etc. Los artículos fungibles suelen considerarse consumidos en el momento en que se emiten y no se registran como inventario retornable. "]
["No fungible","Un artículo no fungible es un bien tangible que tiene una vida útil de más de dos años y un coste de adquisición de 5.000 dólares o más por unidad. (Nota: La política de capitalización de la organización puede utilizarse para artículos que cuesten menos de 5.000 dólares). "]
["Renovaciones","Se consideran admisibles los gastos de reordenación, reforma y restauración ordinaria de las instalaciones. Los costes de arreglos y modificaciones especiales realizados específicamente para el proyecto son admisibles con la aprobación previa del organismo adjudicador."]
["Reglamento Federal de Adquisiciones","El Reglamento Federal de Adquisiciones se establece para la codificación y publicación de políticas y procedimientos uniformes de adquisición por parte de todas las agencias ejecutivas. El Sistema de Reglamentación de Adquisiciones Federales consiste en el Reglamento de Adquisiciones Federales (FAR por sus siglas en inglés), que es el documento principal, y los reglamentos de adquisición de las agencias que implementan o complementan el FAR."]
["Fuente única","La contratación por medio de propuestas no competitivas es la contratación a través de la solicitud de una sola fuente, o que después de la solicitud de varias fuentes, se determine que la competencia es inadecuada.\n\nLos beneficiarios de la subvención pueden tomar la decisión inicial de que la competencia no es viable si se da una de las siguientes circunstancias:\n1. El artículo de servicio sólo está disponible en una única fuente.\n2. La exigencia o emergencia pública de la necesidad no permitirá un retraso derivado de una licitación.\n3. Tras solicitar varias fuentes, los concursos se consideran inadecuados."]
["Transacción en condiciones de igualdad","Una transacción en la que los compradores y vendedores de un producto actúan de forma independiente y no tienen ninguna relación entre sí. El concepto de una transacción en condiciones de igualdad consiste en garantizar que ambas partes del acuerdo actúan en su propio  nterés y no están sujetas a ninguna presión o coacción por parte de la otra parte.\n\nEn general, los costes de alquiler de instalaciones no son admisibles cuando una de las partes del contrato de alquiler puede controlar o influir sustancialmente en las acciones de la otra (por ejemplo, organizaciones bajo control común a través de funcionarios comunes, Directores o miembros)."]
["Fondos confidenciales","Los fondos confidenciales son los que se asignan a:\n\nCompra de servicios (P/S).\nEsta categoría incluye los viajes o el transporte de un funcionario no federal o de un informante; el alquiler de un apartamento, de un local comercial, de automóviles de lujo, de un avión o de una embarcación, o de efectos similares para crear o establecer la apariencia de riqueza; y/o las comidas, las bebidas, las diversiones y los gastos similares (incluyendo la compra de dinero y los fajos de dinero, etc.) para fines encubiertos, dentro de límites razonables.\n\nCompra de pruebas (P/E).\nEsta categoría es para P/E y/o contrabando, como narcóticos y drogas peligrosas, armas de fuego, bienes robados, sellos fiscales falsos, etc., necesarios para determinar la existencia de un delito o para establecer la identidad de un participante en un delito.\n\nCompra de información específica (P/I).\nEsta categoría incluye el pago de dinero a un informante por información específica. Todos los demás gastos de los informantes se clasificarán en P/S y se imputarán en consecuencia. "]
["Acuerdo negociado totalmente ejecutado","El Acuerdo Negociado Totalmente Ejecutado es un acuerdo firmado y aprobado sobre la tasa de costes indirectos que refleja un acuerdo alcanzado entre el beneficiario de la subvención y la agencia federal competente."]
["Agencia Federal competente","La agencia federal competente es la agencia federal que, por lo general, proporciona la mayor ayuda financiera federal al receptor de los fondos. La Oficina de Gestión y Presupuesto (OMB) asigna el reconocimiento. Las asignaciones de la agencia competente para las ciudades y condados más grandes se publican en el Registro Federal."]